Workbook

Sheet Contents
F2: =Workbook.Title -> Single User Throughput in 5G NR
A4: Information
A6: Title | B6: Single User Throughput in 5G NR
A7: Objective | B7: To compare throughput for different spectrum options
A8: Status | B8: Approved for release
A10: Contents
A12: Sheet | B12: Description
A13: Contents | B13: This contents sheet
A14: Inputs | B14: Input parameters used in calculation sheets
A15: DL linkLevel | B15: Calculation sheet for Downlink throughput calculations
A16: UL linkLevel | B16: Calculation sheet for Uplink throughput calculations
A17: Sources | B17: Sources of equations and parameters taken from 3gpp references
A19: Terms and conditions
A20: The terms and conditions on which OFCOM is making available the model are set out below. The SUT model provided has been developed to calculate the single user throughput for different spectrum scenarios and compare against differentservice throughput requirements. All right, title and interest in the provided model (the ‘Model’) constructed in Excel to calculate SUT are owned by OFCOM. Such title and interest is protected by United Kingdom intellectual property laws and international treaty provisions. While you may freely use the Model for the purposes for which it is provided, as set out in the accompanying model documentation, it is not to be modified in any way or used for commercial gain or otherwise without the prior written permission of OFCOM. No representation or warranty is given as to the accuracy, completeness or correctness of the provided Model and it is provided 'as is'. It is provided without any representation or endorsement made and without warranty of any kind, whether express or implied, including but not limited to the implied warranties of satisfactory quality, fitness for a particular purpose, non-infringement, compatibility, security and accuracy. OFCOM does not accept any responsibility for any loss, disruption or damage to your data or your computer system which may occur whilst using the Model or material derived from the Model. OFCOM does not warrant that the functions contained in the Model will be uninterrupted or error free. Also, OFCOM does not warrant that defects will be corrected, or that the Model provided is free of viruses. In no event will OFCOM be liable for any loss or damage including, without limitation, indirect or consequential loss or damage, or any loss or damages whatsoever arising from use or loss of use of, data or profits arising out of or in connection with the use or otherwise of the provided Model. By using this Model, you agree to the above.

Sheet Inputs
A1: Input Parameters
B2: All parameters are described in detail in Annex 2 of the associated consultation
B3: Lookup Tables
C4: Yes | D4: No | F4: 3GPP TS 38.101 Maximum Tx BW configuration NRB Table 5.3.2-1
H5: BW (MHz)
C6: table offset | F6: Sub carrier spacing (SCS) (kHz) | G6: MU (numerology) | H6: 5 | I6: 10 | J6: 20 | K6: 40 | L6: 50 | M6: 70 | N6: 80 | O6: 100
B7: =B44 -> DL 0.75 New | C7: 1 | F7: 15 | G7: 0 | H7: 25 | J7: 106 | K7: 216 | L7: 270 | M7: N/A | N7: NA | O7: NA
B8: =B54 -> DL 0.75 Original | C8: 11 | F8: 30 | G8: 1 | H8: 11 | I8: 24 | J8: 51 | K8: 106 | L8: 133 | M8: 189 | N8: 217 | O8: 273
B9: =B64 -> UL New | C9: 1 | F9: 60 | G9: 2 | H9: NA | I9: 11 | J9: 24 | K9: NA | L9: 65 | M9: 93 | N9: 107 | O9: 135
B10: =B74 -> UL Original | C10: 11
G11: QPSK | H11: 16QAM | I11: 64QAM | J11: 256QAM | M11: Base station
F12: Qm options | G12: 2 | H12: 4 | I12: 6 | J12: 8 | M12: Macro | N12: Micro | O12: Small Indoor
L13: BS power (dBm/20 MHz) | M13: 71 | N13: 24 | O13: =24-6 -> 18
F14: f options | G14: 1 | H14: 0.8 | I14: 0.75 | J14: 0.4 | L14: BS NF (dB) | M14: 5 | N14: 7 | O14: 9 | P14: Equation 14.6, §14.4, “LTE for UMTS: Evolution to LTE-Advanced”, Harri Holma and Antti Toskala, Wiley, Second edition, 2011.
L15: BS gain (dBi) | M15: 21 | N15: 3 | O15: 0
B19: General Parameters | G19: Downlink | I19: Uplink
B20: Base Station | C20: Macro | D20: BS_type | F20: Throughput Parameters
B21: Carrier aggregation loss | C21: 0.06 | D21: CA_Loss | E21: Table 13 of ECC Report 287 | F21: Qm | G21: 8 | H21: DL_Qm | I21: 6 | J21: UL_Qm | K21: as CQI = 15
B22: Number Subcarriersper Res Element | C22: 12 | D22: Subcarriers | E22: 3gpp TR 36.942 Annex A | F22: Rmax | G22: =948/1024 -> 0.92578125 | H22: DL_Rmax | I22: =948/1024 -> 0.92578125 | J22: UL_Rmax | K22: as CQI = 15
B23: Number Symbols per Res Element | C23: 14 | D23: Symbols | E23: 3gpp TR 36.942 Annex A | F23: f | G23: 1 | H23: DL_f | I23: 1 | J23: UL_f | K23: From 3GPP TS 38.306 V16.0.0 (2020-03)
B24: thermal noise (dBm/MHz) | C24: =-174+60 -> -114 | D24: thermal_noise | F24: Overhead | G24: 0.14 | H24: DL_OH | I24: 0.08 | J24: UL_OH | K24: From 3GPP TS 38.306 V16.0.0 (2020-03)
F25: Pathloss parameters
F26: Normalise BW (MHz) | G26: 98.28 | H26: DL_NormBW | I26: 98.28 | J26: UL_NormBW
B27: Downlink Service | C27: Mbps | D27: explanation of selection provided in Annex 2 of Consultation and summarised in Table A5 | F27: Normalise layers | G27: 4 | H27: DL_NormLayers | I27: 2 | J27: UL_NormLayers
B28: Mobile broadband live video | C28: 300 | F28: Max Device Power dBm) | G28: =HLOOKUP(BS_type,M12:O15,2,FALSE)+10*LOG10(DL_NormBW/20) -> 77.91435152 | I28: 26 | K28: From Ofcom Licence template
B29: Professional mobile video 8K 2D; Cloud VR 2K@90fps | C29: 100 | F29: EIRP per layer (dBm) | G29: =G28-10*LOG10(DL_NormLayers) -> 71.89375161 | H29: DL_EIRP | I29: =I28-10*LOG10(UL_NormLayers) -> 22.98970004 | J29: UL_EIRP | K29: From Ofcom Licence template
B30: Cloud computer games for connected vehicles with 4K 3D graphics; Professional mobile video 4K 3D; Cloud VR 1018p@60fps | C30: 50 | F30: Noise Figure (dB) | G30: 9 | H30: DL_NF | I30: =HLOOKUP(BS_type,M12:O15,3,FALSE) -> 5 | J30: UL_NF
B31: Professional mobile video 4K 2D | C31: 25 | F31: Rx Antenna Gain (dBi) | G31: 0 | H31: DL_Rxgain | I31: =HLOOKUP(BS_type,$M$12:$O$15,4,FALSE) -> 21 | J31: UL_Rxgain
B32: Cloud VR 720p@30fps | C32: 20 | G32: =thermal_noise+10*LOG10(G26) +DL_NF -> -85.07534852 | H32: DL_NormNoise | I32: =thermal_noise+10*LOG10(G26) +UL_NF -> -89.07534852 | J32: UL_NormNoise
F33: Shannon parameters
B34: Uplink Service | C34: Mbps | D34: explanation of selection provided in Annex 2 of Consultation and summarised in Table A5 | F34: Alpha | G34: 0.6 | H34: DL_alpha | I34: 0.55 | J34: UL_alpha | K34: 3gpp TR 36.942 Annex A
B35: Mobile broadband live video; Cloud computer games for connected vehicles with 4K 3D graphics | C35: 50
B36: Industrial control | C36: 25
B37: Connectivity for drones | C37: 20
B42: Spectrum Scenarios
B44: DL 0.75 New
B45: Scenario | C45: No. Layers | D45: SCS (kHz) | E45: BW1 (MHz) | F45: BW2 (MHz) | G45: Scenario Description
A46: Scenario 1 | B46: 40 MHz TDD 4x4 SU-MIMO | C46: 4 | D46: 30 | E46: 40 | G46: Single carrier, 4 layers, scs 30 kHz, 40 MHz
A47: Scenario 2 | B47: 50 MHz TDD 4x4 SU-MIMO | C47: 4 | D47: 30 | E47: 50 | G47: Single carrier, 4 layers, scs 30 kHz, 50 MHz
A48: Scenario 3 | B48: 80 MHz TDD 4x4 SU-MIMO | C48: 4 | D48: 30 | E48: 80 | G48: Single carrier, 4 layers, scs 30 kHz, 80 MHz
A49: Scenario 4 | B49: 40 + 40 MHz 4x4 SU-MIMO | C49: 4 | D49: 30 | E49: 40 | F49: 40 | G49: Dual carrier, 4 layers, scs 30 kHz, 40 + 40 MHz
A50: Scenario 5 | B50: 100 MHz TDD 4x4 SU-MIMO | C50: 4 | D50: 30 | E50: 100 | G50: Single carrier, 4 layers, scs 30 kHz, 100 MHz
B54: DL 0.75 Original
B55: Scenario | C55: No. Layers | D55: SCS (kHz) | E55: BW1 (MHz) | F55: BW2 (MHz) | G55: Scenario Description
A56: Scenario 1 | B56: 40 MHz TDD 4x4 SU-MIMO | C56: 4 | D56: 30 | E56: 40 | G56: Single carrier, 4 layers, scs 30 kHz, 40 MHz
A57: Scenario 2 | B57: 100 MHz TDD 2x2 SU-MIMO | C57: 2 | D57: 30 | E57: 100 | G57: Single carrier, 2 layers, scs 30 kHz, 100 MHz
A58: Scenario 3 | B58: 20 + 70 MHz TDD 4x4 SU-MIMO | C58: 4 | D58: 30 | E58: 20 | F58: 70 | G58: Dual carrier, 4 layers, scs 30 kHz, 20 + 70 MHz
A59: Scenario 4 | B59: 50 + 50 MHz 4x4 SU-MIMO | C59: 4 | D59: 30 | E59: 50 | F59: 50 | G59: Dual carrier, 4 layers, scs 30 kHz, 50 + 50 MHz
A60: Scenario 5 | B60: 100 MHz TDD 4x4 SU-MIMO | C60: 4 | D60: 30 | E60: 100 | G60: Single carrier, 4 layers, scs 30 kHz, 100 MHz
B64: UL New
B65: Scenario | C65: No. Layers | D65: SCS (kHz) | E65: BW1 (MHz) | F65: BW2 (MHz) | G65: Scenario Description
A66: Scenario 1 | B66: 40 MHz TDD 2x2 SU-MIMO | C66: 2 | D66: 30 | E66: 40 | G66: Single carrier, 2 layers, scs 30 kHz, 40 MHz
A67: Scenario 2 | B67: 50 MHz TDD 2x2 SU-MIMO | C67: 2 | D67: 30 | E67: 50 | G67: Single carrier, 2 layers, scs 30 kHz, 50 MHz
A68: Scenario 3 | B68: 80 MHz TDD 2x2 SU-MIMO | C68: 2 | D68: 30 | E68: 80 | G68: Single carrier, 2 layers, scs 30 kHz, 80 MHz
A69: Scenario 4 | B69: 100 MHz TDD 2x2 SU-MIMO | C69: 2 | D69: 30 | E69: 100 | G69: Single carrier, 2 layers, scs 30 kHz, 100 MHz
A70: Scenario 5 | C70: 2 | D70: 30
B74: UL Original
B75: Scenario | C75: No. Layers | D75: SCS (kHz) | E75: BW1 (MHz) | F75: BW2 (MHz) | G75: Scenario Description
A76: Scenario 1 | B76: 40 MHz TDD 2x2 SU-MIMO | C76: 2 | D76: 30 | E76: 40 | G76: Single carrier, 2 layers, scs 30 kHz, 40 MHz
A77: Scenario 2 | B77: 80 MHz TDD 2x2 SU-MIMO | C77: 2 | D77: 30 | E77: 80 | G77: Single carrier, 2 layers, scs 30 kHz, 80 MHz
A78: Scenario 3 | B78: 20 + 70 MHz TDD 2x2 SU-MIMO | C78: 2 | D78: 30 | E78: 20 | F78: 70 | G78: Dual carrier, 2 layers, scs 30 kHz, 20 + 70 MHz
A79: Scenario 4 | B79: 50 + 50 MHz 2x2 SU-MIMO | C79: 2 | D79: 30 | E79: 50 | F79: 50 | G79: Dual carrier, 2 layers, scs 30 kHz, 50 + 50 MHz
A80: Scenario 5 | B80: 100 MHz TDD 2x2 SU-MIMO | C80: 2 | D80: 30 | E80: 100 | G80: Single carrier, 2 layers, scs 30 kHz, 100 MHz
B83: Plot configurations Settings for checks
B85: Downlink configuration Settings | H85: Plot Lines
B86: Summary | C86: TDD Ratio | D86: BS Type | E86: Spectrum Scenario | F86: Plot Type | G86: Scale Plot? | H86: =B28 -> Mobile broadband live video | I86: =B29 -> Professional mobile video 8K 2D; Cloud VR 2K@90fps | J86: =B30 -> Cloud computer games for connected vehicles with 4K 3D graphics; Professional mobile video 4K 3D; Cloud VR 1018p@60fps | K86: =B31 -> Professional mobile video 4K 2D | L86: =B32 -> Cloud VR 720p@30fps
A87: e.g. | B87: DL 0.75 New - SINR | C87: 0.75 | D87: Macro | E87: DL 0.75 New | F87: SINR per layer (dB) | G87: No | H87: Yes | I87: Yes | J87: Yes | K87: Yes | L87: Yes
B88: DL 0.75 Original - SINR | C88: 0.75 | D88: Macro | E88: DL 0.75 Original | F88: SINR per layer (dB) | G88: No | H88: Yes | I88: Yes | J88: Yes | K88: Yes | L88: Yes
B97: Uplink configuration Settings | H97: Plot Lines
B98: Summary | C98: TDD Ratio | D98: BS Type | E98: Spectrum Scenario | F98: Plot Type | G98: Scale Plot? | H98: =B35 -> Mobile broadband live video; Cloud computer games for connected vehicles with 4K 3D graphics | I98: =B36 -> Industrial control | J98: =B37 -> Connectivity for drones | K98: =B38 -> 0 | L98: =B39 -> 0
A99: e.g | B99: UL 0.25 New - SINR | C99: 0.25 | D99: Macro | E99: UL New | F99: SINR per layer (dB) | G99: No | H99: Yes | I99: No | J99: Yes | K99: No | L99: No
B100: UL 0.50 New - SINR | C100: 0.5 | D100: Macro | E100: UL New | F100: SINR per layer (dB) | G100: No | H100: No | I100: Yes | J100: No | K100: No | L100: No
B101: UL 0.25 New - Pathloss (scales) | C101: 0.25 | D101: Macro | E101: UL New | F101: Pathloss (dB) | G101: Yes | H101: Yes | I101: No | J101: Yes | K101: No | L101: No
B102: UL 0.25 Origional - SINR | C102: 1.25 | D102: Macro | E102: UL New | F102: SINR per layer (dB) | G102: No | H102: Yes | I102: Yes | J102: Yes | K102: No | L102: No

Sheet DL linkLevel
A1: Downlink Link Level Throughput Calculations
F2: Plot configurations check
B3: Parameter | F3: DL 0.75 New - SINR
B4: BS type | C4: =BS_type -> Macro | D4: change on Inputs sheet | F4: =VLOOKUP('DL linkLevel'!$F$3,Inputs!$B$86:$L$94,3,FALSE) -> Macro | G4: =F4=C4 -> TRUE
B5: DL/UL ratio | C5: 0.75 | D5: DL_ratio | F5: =VLOOKUP('DL linkLevel'!$F$3,Inputs!$B$86:$L$94,2,FALSE) -> 0.75 | G5: =F5=C5 -> TRUE
B6: Scale Power | C6: No | D6: DL_scale | F6: =VLOOKUP('DL linkLevel'!$F$3,Inputs!$B$86:$L$94,6,FALSE) -> No | G6: =F6=C6 -> TRUE
B7: Plot | C7: SINR per layer (dB) | D7: DL_Plot | F7: =VLOOKUP('DL linkLevel'!$F$3,Inputs!$B$86:$L$94,5,FALSE) -> SINR per layer (dB) | G7: =F7=C7 -> TRUE
B8: Plot title | C8: =CONCATENATE("Downlink SUT Distribution (Downlink ",DL_ratio*100,"%)") -> Downlink SUT Distribution (Downlink 75%)
B10: Services | C10: Mbps | D10: Plot?
B11: =Inputs!B28 -> Mobile broadband live video | C11: =Inputs!C28 -> 300 | D11: Yes | F11: =VLOOKUP('DL linkLevel'!$F$3,Inputs!$B$86:$L$94,7,FALSE) -> Yes | G11: =F11=D11 -> TRUE
B12: =Inputs!B29 -> Professional mobile video 8K 2D; Cloud VR 2K@90fps | C12: =Inputs!C29 -> 100 | D12: Yes | F12: =VLOOKUP('DL linkLevel'!$F$3,Inputs!$B$86:$L$94,8,FALSE) -> Yes | G12: =F12=D12 -> TRUE
B13: =Inputs!B30 -> Cloud computer games for connected vehicles with 4K 3D graphics; Professional mobile video 4K 3D; Cloud VR 1018p@60fps | C13: =Inputs!C30 -> 50 | D13: Yes | F13: =VLOOKUP('DL linkLevel'!$F$3,Inputs!$B$86:$L$94,9,FALSE) -> Yes | G13: TRUE
B14: =Inputs!B31 -> Professional mobile video 4K 2D | C14: =Inputs!C31 -> 25 | D14: Yes | F14: =VLOOKUP('DL linkLevel'!$F$3,Inputs!$B$86:$L$94,10,FALSE) -> Yes | G14: TRUE
B15: =Inputs!B32 -> Cloud VR 720p@30fps | C15: =Inputs!C32 -> 20 | D15: Yes | F15: =VLOOKUP('DL linkLevel'!$F$3,Inputs!$B$86:$L$94,11,FALSE) -> Yes | G15: TRUE
B17: Spectrum Scenarios | C17: DL 0.75 New | F17: =VLOOKUP('DL linkLevel'!$F$3,Inputs!$B$86:$L$94,4,FALSE) -> DL 0.75 New | G17: =F17=C17 -> TRUE
B18: lookup offset | C18: =VLOOKUP('DL linkLevel'!C17,Inputs!B7:C8,2,FALSE) -> 1 | E18: DL_scenario_offset | I18: lookuptable offset | J18: 2 | K18: 2
C19: No. Layers | D19: SCS (kHz) | E19: BW1 (MHz) | F19: BW2 (MHz) | G19: CA Scaling (reduce 6% if 2 carriers) | H19: total carrier BW | I19: mu (factor for the throughput calc) | J19: NRB1 (looked up from table based on BW1, SCS hard coded) | K19: NRB2 (looked up from table above based on BW2, SCS hard coded) | L19: Max_tput (Mbps) calc based on 5G NR throughput rate calc | M19: Transmission BW (MHz) | N19: spec Efficiency/ T-BW layer @100% (bps/Hz) | O19: SINR scaling for Power/carriers | P19: Scenario description
A20: 1 | B20: Scenario 1 | C20: =HLOOKUP(C$19,Inputs!$B$45:$F$60,DL_scenario_offset+$A20,FALSE) -> 4 | D20: =HLOOKUP(D$19,Inputs!$B$45:$F$60,DL_scenario_offset+$A20,FALSE) -> 30 | E20: =HLOOKUP(E$19,Inputs!$B$45:$F$60,DL_scenario_offset+$A20,FALSE) -> 40 | F20: =HLOOKUP(F$19,Inputs!$B$45:$F$60,DL_scenario_offset+$A20,FALSE) -> 0 | G20: =IF(F20=0,1,1-CA_Loss) -> 1 | H20: =SUM(E20:F20) -> 40 | I20: =VLOOKUP(D20,Inputs!$F$7:$G$9,2,FALSE) -> 1 | J20: =IF(E20>0,HLOOKUP(E20,Inputs!$H$6:$O$9,$I20+$J$18,FALSE),) -> 106 | K20: =IF(F20>0,HLOOKUP(F20,Inputs!$H$6:$O$9,$I20+$J$18,FALSE),) -> 0 | L20: =C20*DL_ratio*DL_Qm*DL_f*DL_Rmax*(1-DL_OH)*Symbols*Subcarriers*(2^I20)*(J20+K20)/1000 -> 680.55498 | M20: =((D20*Subcarriers*J20)+(D20*Subcarriers*K20))/1000 -> 38.16 | N20: =L20/(M20*C20*DL_ratio) -> 5.94475 | O20: =IF(DL_scale="Yes",DL_NormBW*DL_NormLayers/(M20*C20),1) -> 1 | P20: =HLOOKUP(P$19,Inputs!$B$45:$G$60,DL_scenario_offset+$A20,FALSE) -> Single carrier, 4 layers, scs 30 kHz, 40 MHz
A21: 2 | B21: Scenario 2 | C21: =HLOOKUP(C$19,Inputs!$B$45:$F$60,DL_scenario_offset+$A21,FALSE) -> 4 | D21: =HLOOKUP(D$19,Inputs!$B$45:$F$60,DL_scenario_offset+$A21,FALSE) -> 30 | E21: =HLOOKUP(E$19,Inputs!$B$45:$F$60,DL_scenario_offset+$A21,FALSE) -> 50 | F21: =HLOOKUP(F$19,Inputs!$B$45:$F$60,DL_scenario_offset+$A21,FALSE) -> 0 | G21: =IF(F21=0,1,1-CA_Loss) -> 1 | H21: =SUM(E21:F21) -> 50 | I21: =VLOOKUP(D21,Inputs!$F$7:$G$9,2,FALSE) -> 1 | J21: =IF(E21>0,HLOOKUP(E21,Inputs!$H$6:$O$9,$I21+$J$18,FALSE),) -> 133 | K21: =IF(F21>0,HLOOKUP(F21,Inputs!$H$6:$O$9,$I21+$J$18,FALSE),) -> 0 | L21: =C21*DL_ratio*DL_Qm*DL_f*DL_Rmax*(1-DL_OH)*Symbols*Subcarriers*(2^I21)*(J21+K21)/1000 -> 853.90389 | M21: =((D21*Subcarriers*J21)+(D21*Subcarriers*K21))/1000 -> 47.88 | N21: =L21/(M21*C21*DL_ratio) -> 5.94475 | O21: =IF(DL_scale="Yes",DL_NormBW*DL_NormLayers/(M21*C21),1) -> 1 | P21: =HLOOKUP(P$19,Inputs!$B$45:$G$60,DL_scenario_offset+$A21,FALSE) -> Single carrier, 4 layers, scs 30 kHz, 50 MHz
A22: 3 | B22: Scenario 3 | C22: =HLOOKUP(C$19,Inputs!$B$45:$F$60,DL_scenario_offset+$A22,FALSE) -> 4 | D22: =HLOOKUP(D$19,Inputs!$B$45:$F$60,DL_scenario_offset+$A22,FALSE) -> 30 | E22: =HLOOKUP(E$19,Inputs!$B$45:$F$60,DL_scenario_offset+$A22,FALSE) -> 80 | F22: =HLOOKUP(F$19,Inputs!$B$45:$F$60,DL_scenario_offset+$A22,FALSE) -> 0 | G22: =IF(F22=0,1,1-CA_Loss) -> 1 | H22: =SUM(E22:F22) -> 80 | I22: =VLOOKUP(D22,Inputs!$F$7:$G$9,2,FALSE) -> 1 | J22: =IF(E22>0,HLOOKUP(E22,Inputs!$H$6:$O$9,$I22+$J$18,FALSE),) -> 217 | K22: =IF(F22>0,HLOOKUP(F22,Inputs!$H$6:$O$9,$I22+$J$18,FALSE),) -> 0 | L22: =C22*DL_ratio*DL_Qm*DL_f*DL_Rmax*(1-DL_OH)*Symbols*Subcarriers*(2^I22)*(J22+K22)/1000 -> 1393.21161 | M22: =((D22*Subcarriers*J22)+(D22*Subcarriers*K22))/1000 -> 78.12 | N22: =L22/(M22*C22*DL_ratio) -> 5.94475 | O22: =IF(DL_scale="Yes",DL_NormBW*DL_NormLayers/(M22*C22),1) -> 1 | P22: =HLOOKUP(P$19,Inputs!$B$45:$G$60,DL_scenario_offset+$A22,FALSE) -> Single carrier, 4 layers, scs 30 kHz, 80 MHz
A23: 4 | B23: Scenario 4 | C23: =HLOOKUP(C$19,Inputs!$B$45:$F$60,DL_scenario_offset+$A23,FALSE) -> 4 | D23: =HLOOKUP(D$19,Inputs!$B$45:$F$60,DL_scenario_offset+$A23,FALSE) -> 30 | E23: =HLOOKUP(E$19,Inputs!$B$45:$F$60,DL_scenario_offset+$A23,FALSE) -> 40 | F23: =HLOOKUP(F$19,Inputs!$B$45:$F$60,DL_scenario_offset+$A23,FALSE) -> 40 | G23: =IF(F23=0,1,1-CA_Loss) -> 0.94 | H23: =SUM(E23:F23) -> 80 | I23: =VLOOKUP(D23,Inputs!$F$7:$G$9,2,FALSE) -> 1 | J23: =IF(E23>0,HLOOKUP(E23,Inputs!$H$6:$O$9,$I23+$J$18,FALSE),) -> 106 | K23: =IF(F23>0,HLOOKUP(F23,Inputs!$H$6:$O$9,$I23+$J$18,FALSE),) -> 106 | L23: =C23*DL_ratio*DL_Qm*DL_f*DL_Rmax*(1-DL_OH)*Symbols*Subcarriers*(2^I23)*(J23+K23)/1000 -> 1361.10996 | M23: =((D23*Subcarriers*J23)+(D23*Subcarriers*K23))/1000 -> 76.32 | N23: =L23/(M23*C23*DL_ratio) -> 5.94475 | O23: =IF(DL_scale="Yes",DL_NormBW*DL_NormLayers/(M23*C23),1) -> 1 | P23: =HLOOKUP(P$19,Inputs!$B$45:$G$60,DL_scenario_offset+$A23,FALSE) -> Dual carrier, 4 layers, scs 30 kHz, 40 + 40 MHz
A24: 5 | B24: Scenario 5 | C24: =HLOOKUP(C$19,Inputs!$B$45:$F$60,DL_scenario_offset+$A24,FALSE) -> 4 | D24: =HLOOKUP(D$19,Inputs!$B$45:$F$60,DL_scenario_offset+$A24,FALSE) -> 30 | E24: =HLOOKUP(E$19,Inputs!$B$45:$F$60,DL_scenario_offset+$A24,FALSE) -> 100 | F24: =HLOOKUP(F$19,Inputs!$B$45:$F$60,DL_scenario_offset+$A24,FALSE) -> 0 | G24: =IF(F24=0,1,1-CA_Loss) -> 1 | H24: =SUM(E24:F24) -> 100 | I24: =VLOOKUP(D24,Inputs!$F$7:$G$9,2,FALSE) -> 1 | J24: =IF(E24>0,HLOOKUP(E24,Inputs!$H$6:$O$9,$I24+$J$18,FALSE),) -> 273 | K24: =IF(F24>0,HLOOKUP(F24,Inputs!$H$6:$O$9,$I24+$J$18,FALSE),) -> 0 | L24: =C24*DL_ratio*DL_Qm*DL_f*DL_Rmax*(1-DL_OH)*Symbols*Subcarriers*(2^I24)*(J24+K24)/1000 -> 1752.75009 | M24: =((D24*Subcarriers*J24)+(D24*Subcarriers*K24))/1000 -> 98.28 | N24: =L24/(M24*C24*DL_ratio) -> 5.94475 | O24: =IF(DL_scale="Yes",DL_NormBW*DL_NormLayers/(M24*C24),1) -> 1 | P24: =HLOOKUP(P$19,Inputs!$B$45:$G$60,DL_scenario_offset+$A24,FALSE) -> Single carrier, 4 layers, scs 30 kHz, 100 MHz
G25: =B20 -> Scenario 1 | J25: =B21 -> Scenario 2 | M25: =B22 -> Scenario 3 | P25: =B23 -> Scenario 4 | S25: =B24 -> Scenario 5 | V25: Service Lines
C26: SINR per layer (dB) | D26: Pathloss (dB) | E26: X-axis (dB) | F26: SINR (linear) | G26: Spec Efficiency per layer | H26: Spec Eff truncated (bit/Hz) | I26: =INDEX(Inputs!$B$45:$G$60,DL_scenario_offset+$A20,1) -> 40 MHz TDD 4x4 SU-MIMO | J26: Spec Efficiency per layer | K26: Spec Eff truncated (bit/Hz) | L26: =INDEX(Inputs!$B$45:$G$60,DL_scenario_offset+$A21,1) -> 50 MHz TDD 4x4 SU-MIMO | M26: Spec Efficiency per layer | N26: Spec Eff truncated (bit/Hz) | O26: =INDEX(Inputs!$B$45:$G$60,DL_scenario_offset+$A22,1) -> 80 MHz TDD 4x4 SU-MIMO | P26: Spec Efficiency per layer | Q26: Spec Eff truncated (bit/Hz) | R26: =INDEX(Inputs!$B$45:$G$60,DL_scenario_offset+$A23,1) -> 40 + 40 MHz 4x4 SU-MIMO | S26: Spec Efficiency per layer | T26: Spec Eff truncated (bit/Hz) | U26: =INDEX(Inputs!$B$45:$G$60,DL_scenario_offset+$A24,1) -> 100 MHz TDD 4x4 SU-MIMO | V26: =IF($D$11="yes",B11,"service 1") -> Mobile broadband live video | W26: =IF($D$12="yes",B12,"service 2") -> Professional mobile video 8K 2D; Cloud VR 2K@90fps | X26: =IF($D$13="yes",B13,"service 3") -> Cloud computer games for connected vehicles with 4K 3D graphics; Professional mobile video 4K 3D; Cloud VR 1018p@60fps | Y26: =IF($D$14="yes",B14,"service 4") -> Professional mobile video 4K 2D | Z26: =IF($D$15="yes",B15,"service 5") -> Cloud VR 720p@30fps
C27: -10 | D27: =DL_EIRP-(C27+DL_NormNoise)+DL_Rxgain -> 166.9691001 | E27: =IF(DL_Plot=$C$26,C27,IF($C$7=$D$26,D27,0)) -> -10 | F27: =10^(C27/10) -> 0.1 | G27: =DL_alpha*LOG(1 +($F27*$O$20),2) -> 0.08250211425 | H27: =IF(G27<=$N$20,G27,$N$20) -> 0.08250211425 | I27: =$H27*$G$20*$M$20*$C$20*DL_ratio -> 9.444842039 | J27: =DL_alpha*LOG(1 +($F27*$O$21),2) -> 0.08250211425 | K27: =IF(J27<=$N$20,J27,$N$20) -> 0.08250211425 | L27: =$K27*$G$21*$M$21*$C$21*DL_ratio -> 11.85060369 | M27: =DL_alpha*LOG(1 +($F27*$O$22),2) -> 0.08250211425 | N27: =IF(M27<=$N$20,M27,$N$20) -> 0.08250211425 | O27: =$N27*$G$22*$M$22*$C$22*DL_ratio -> 19.3351955 | P27: =DL_alpha*LOG(1 +($F27*$O$23),2) -> 0.08250211425 | Q27: =IF(P27<=$N$20,P27,$N$20) -> 0.08250211425 | R27: =$Q27*$G$23*$M$23*$C$23*DL_ratio -> 17.75630303 | S27: =DL_alpha*LOG(1 +($F27*$O$24),2) -> 0.08250211425 | T27: =IF(S27<=$N$20,S27,$N$20) -> 0.08250211425 | U27: =$T27*$G$24*$M$24*$C$24*DL_ratio -> 24.32492337 | V27: =IF($D$11="yes",$C$11,"") -> 300 | W27: =IF($D$12="yes",$C$12,"") -> 100 | X27: =IF($D$13="yes",$C$13,"") -> 50 | Y27: =IF($D$14="yes",$C$14,"") -> 25 | Z27: =IF($D$15="yes",$C$15,"") -> 20
C28: -9 | D28: 165.9691001 | E28: -9 | F28: 0.1258925412 | G28: 0.1026414831 | H28: 0.1026414831 | I28: 11.75039699 | J28: 0.1026414831 | K28: 0.1026414831 | L28: 14.74342263 | M28: 0.1026414831 | N28: 0.1026414831 | O28: 24.05505798 | P28: 0.1026414831 | Q28: 0.1026414831 | R28: 22.09074633 | S28: 0.1026414831 | T28: 0.1026414831 | U28: 30.26281488 | V28: 300 | W28: 100 | X28: 50 | Y28: 25 | Z28: 20
C29: -8 | D29: 164.9691001 | E29: -8 | F29: 0.1584893192 | G29: 0.127346846 | H29: 0.127346846 | I29: 14.57866693 | J29: 0.127346846 | K29: 0.127346846 | L29: 18.29210095 | M29: 0.127346846 | N29: 0.127346846 | O29: 29.84500682 | P29: 0.127346846 | Q29: 0.127346846 | R29: 27.40789382 | S29: 0.127346846 | T29: 0.127346846 | U29: 37.54694406 | V29: 300 | W29: 100 | X29: 50 | Y29: 25 | Z29: 20
C30: -7 | D30: 163.9691001 | E30: -7 | F30: 0.1995262315 | G30: 0.1574788243 | H30: 0.1574788243 | I30: 18.0281758 | J30: 0.1574788243 | K30: 0.1574788243 | L30: 22.62025832 | M30: 0.1574788243 | N30: 0.1574788243 | O30: 36.90673726 | P30: 0.1574788243 | Q30: 0.1574788243 | R30: 33.89297051 | S30: 0.1574788243 | T30: 0.1574788243 | U30: 46.43105655 | V30: 300 | W30: 100 | X30: 50 | Y30: 25 | Z30: 20
C31: -6 | D31: 162.9691001 | E31: -6 | F31: 0.2511886432 | G31: 0.1939795936 | H31: 0.1939795936 | I31: 22.20678388 | J31: 0.1939795936 | K31: 0.1939795936 | L31: 27.86322883 | M31: 0.1939795936 | N31: 0.1939795936 | O31: 45.46105756 | P31: 0.1939795936 | Q31: 0.1939795936 | R31: 41.74875369 | S31: 0.1939795936 | T31: 0.1939795936 | U31: 57.19294338 | V31: 300 | W31: 100 | X31: 50 | Y31: 25 | Z31: 20
C32: -5 | D32: 161.9691001 | E32: -5 | F32: 0.316227766 | G32: 0.2378454967 | H32: 0.2378454967 | I32: 27.22855246 | J32: 0.2378454967 | K32: 0.2378454967 | L32: 34.16412715 | M32: 0.2378454967 | N32: 0.2378454967 | O32: 55.74147061 | P32: 0.2378454967 | Q32: 0.2378454967 | R32: 51.18967863 | S32: 0.2378454967 | T32: 0.2378454967 | U32: 70.12636625 | V32: 300 | W32: 100 | X32: 50 | Y32: 25 | Z32: 20
C33: -4 | D33: 160.9691001 | E33: -4 | F33: 0.3981071706 | G33: 0.290084972 | H33: 0.290084972 | I33: 33.2089276 | J33: 0.290084972 | K33: 0.290084972 | L33: 41.66780538 | M33: 0.290084972 | N33: 0.290084972 | O33: 67.98431404 | P33: 0.290084972 | Q33: 0.290084972 | R33: 62.43278388 | S33: 0.290084972 | T33: 0.290084972 | U33: 85.52865315 | V33: 300 | W33: 100 | X33: 50 | Y33: 25 | Z33: 20
C34: -3 | D34: 159.9691001 | E34: -3 | F34: 0.5011872336 | G34: 0.3516623559 | H34: 0.3516623559 | I34: 40.2583065 | J34: 0.3516623559 | K34: 0.3516623559 | L34: 50.5127808 | M34: 0.3516623559 | N34: 0.3516623559 | O34: 82.41558972 | P34: 0.3516623559 | Q34: 0.3516623559 | R34: 75.68561622 | S34: 0.3516623559 | T34: 0.3516623559 | U34: 103.684129 | V34: 300 | W34: 100 | X34: 50 | Y34: 25 | Z34: 20
C35: -2 | D35: 158.9691001 | E35: -2 | F35: 0.6309573445 | G35: 0.4234314305 | H35: 0.4234314305 | I35: 48.47443016 | J35: 0.4234314305 | K35: 0.4234314305 | L35: 60.82169067 | M35: 0.4234314305 | N35: 0.4234314305 | O35: 99.23539004 | P35: 0.4234314305 | Q35: 0.4234314305 | R35: 91.1319287 | S35: 0.4234314305 | T35: 0.4234314305 | U35: 124.844523 | V35: 300 | W35: 100 | X35: 50 | Y35: 25 | Z35: 20
C36: -1 | D36: 157.9691001 | E36: -1 | F36: 0.7943282347 | G36: 0.5060662951 | H36: 0.5060662951 | I36: 57.93446947 | J36: 0.5060662951 | K36: 0.5060662951 | L36: 72.69136263 | M36: 0.5060662951 | N36: 0.5060662951 | O36: 118.6016969 | P36: 0.5060662951 | Q36: 0.5060662951 | R36: 108.9168026 | S36: 0.5060662951 | T36: 0.5060662951 | U36: 149.2085865 | V36: 300 | W36: 100 | X36: 50 | Y36: 25 | Z36: 20
C37: 0 | D37: 156.9691001 | E37: 0 | F37: 1 | G37: 0.6 | H37: 0.6 | I37: 68.688 | J37: 0.6 | K37: 0.6 | L37: 86.184 | M37: 0.6 | N37: 0.6 | O37: 140.616 | P37: 0.6 | Q37: 0.6 | R37: 129.13344 | S37: 0.6 | T37: 0.6 | U37: 176.904 | V37: 300 | W37: 100 | X37: 50 | Y37: 25 | Z37: 20 | AZ37: =69*100/40 -> 172.5
C38: 1 | D38: 155.9691001 | E38: 1 | F38: 1.258925412 | G38: 0.7053819808 | H38: 0.7053819808 | I38: 80.75212916 | J38: 0.7053819808 | K38: 0.7053819808 | L38: 101.3210677 | M38: 0.7053819808 | N38: 0.7053819808 | O38: 165.313321 | P38: 0.7053819808 | Q38: 0.7053819808 | R38: 151.8140028 | S38: 0.7053819808 | T38: 0.7053819808 | U38: 207.9748232 | V38: 300 | W38: 100 | X38: 50 | Y38: 25 | Z38: 20
C39: 2 | D39: 154.9691001 | E39: 2 | F39: 1.584893192 | G39: 0.8220628019 | H39: 0.8220628019 | I39: 94.10974956 | J39: 0.8220628019 | K39: 0.8220628019 | L39: 118.0811009 | M39: 0.8220628019 | N39: 0.8220628019 | O39: 192.6586382 | P39: 0.8220628019 | Q39: 0.8220628019 | R39: 176.9263292 | S39: 0.8220628019 | T39: 0.8220628019 | U39: 242.3769965 | V39: 300 | W39: 100 | X39: 50 | Y39: 25 | Z39: 20
C40: 3 | D40: 153.9691001 | E40: 3 | F40: 1.995262315 | G40: 0.9496094129 | H40: 0.9496094129 | I40: 108.7112856 | J40: 0.9496094129 | K40: 0.9496094129 | L40: 136.4018961 | M40: 0.9496094129 | N40: 0.9496094129 | O40: 222.550462 | P40: 0.9496094129 | Q40: 0.9496094129 | R40: 204.3772169 | S40: 0.9496094129 | T40: 0.9496094129 | U40: 279.9828393 | V40: 300 | W40: 100 | X40: 50 | Y40: 25 | Z40: 20
C41: 4 | D41: 152.9691001 | E41: 4 | F41: 2.511886432 | G41: 1.087347715 | H41: 1.087347715 | I41: 124.4795664 | J41: 1.087347715 | K41: 1.087347715 | L41: 156.1866258 | M41: 1.087347715 | N41: 1.087347715 | O41: 254.8308104 | P41: 1.087347715 | Q41: 1.087347715 | R41: 234.0215848 | S41: 1.087347715 | T41: 1.087347715 | U41: 320.5936002 | V41: 300 | W41: 100 | X41: 50 | Y41: 25 | Z41: 20
C42: 5 | D42: 151.9691001 | E42: 5 | F42: 3.16227766 | G42: 1.234423925 | H42: 1.234423925 | I42: 141.316851 | J42: 1.234423925 | K42: 1.234423925 | L42: 177.3126526 | M42: 1.234423925 | N42: 1.234423925 | O42: 289.2995911 | P42: 1.234423925 | Q42: 1.234423925 | R42: 265.6756798 | S42: 1.234423925 | T42: 1.234423925 | U42: 363.9575501 | V42: 300 | W42: 100 | X42: 50 | Y42: 25 | Z42: 20
C43: 6 | D43: 150.9691001 | E43: 6 | F43: 3.981071706 | G43: 1.389873708 | H43: 1.389873708 | I43: 159.1127421 | J43: 1.389873708 | K43: 1.389873708 | L43: 199.6414594 | M43: 1.389873708 | N43: 1.389873708 | O43: 325.7308022 | P43: 1.389873708 | Q43: 1.389873708 | R43: 299.1319551 | S43: 1.389873708 | T43: 1.389873708 | U43: 409.790364 | V43: 300 | W43: 100 | X43: 50 | Y43: 25 | Z43: 20
C44: 7 | D44: 149.9691001 | E44: 7 | F44: 5.011872336 | G44: 1.552688624 | H44: 1.552688624 | I44: 177.7517937 | J44: 1.552688624 | K44: 1.552688624 | L44: 223.028194 | M44: 1.552688624 | N44: 1.552688624 | O44: 363.888106 | P44: 1.552688624 | Q44: 1.552688624 | R44: 334.1733721 | S44: 1.552688624 | T44: 1.552688624 | U44: 457.7947139 | V44: 300 | W44: 100 | X44: 50 | Y44: 25 | Z44: 20
C45: 8 | D45: 148.9691001 | E45: 8 | F45: 6.309573445 | G45: 1.721872332 | H45: 1.721872332 | I45: 197.1199445 | J45: 1.721872332 | K45: 1.721872332 | L45: 247.3297417 | M45: 1.721872332 | N45: 1.721872332 | O45: 403.5379996 | P45: 1.721872332 | Q45: 1.721872332 | R45: 370.5854957 | S45: 1.721872332 | T45: 1.721872332 | U45: 507.6768382 | V45: 300 | W45: 100 | X45: 50 | Y45: 25 | Z45: 20
C46: 9 | D46: 147.9691001 | E46: 9 | F46: 7.943282347 | G46: 1.896482654 | H46: 1.896482654 | I46: 217.1093343 | J46: 1.896482654 | K46: 1.896482654 | L46: 272.4107685 | M46: 1.896482654 | N46: 1.896482654 | O46: 444.4596749 | P46: 1.896482654 | Q46: 1.896482654 | R46: 408.1655484 | S46: 1.896482654 | T46: 1.896482654 | U46: 559.1589458 | V46: 300 | W46: 100 | X46: 50 | Y46: 25 | Z46: 20
C47: 10 | D47: 146.9691001 | E47: 10 | F47: 10 | G47: 2.075658971 | H47: 2.075658971 | I47: 237.621439 | J47: 2.075658971 | K47: 2.075658971 | L47: 298.1476546 | M47: 2.075658971 | N47: 2.075658971 | O47: 486.4514365 | P47: 2.075658971 | Q47: 2.075658971 | R47: 446.7283054 | S47: 2.075658971 | T47: 2.075658971 | U47: 611.9872911 | V47: 300 | W47: 100 | X47: 50 | Y47: 25 | Z47: 20
C48: 11 | D48: 145.9691001 | E48: 11 | F48: 12.58925412 | G48: 2.25863662 | H48: 2.25863662 | I48: 258.5687203 | J48: 2.25863662 | K48: 2.25863662 | L48: 324.4305641 | M48: 2.25863662 | N48: 2.25863662 | O48: 529.3340783 | P48: 2.25863662 | Q48: 2.25863662 | R48: 486.1091941 | S48: 2.25863662 | T48: 2.25863662 | U48: 665.9364211 | V48: 300 | W48: 100 | X48: 50 | Y48: 25 | Z48: 20
C49: 12 | D49: 144.9691001 | E49: 12 | F49: 15.84893192 | G49: 2.444751141 | H49: 2.444751141 | I49: 279.8751106 | J49: 2.444751141 | K49: 2.444751141 | L49: 351.1640539 | M49: 2.444751141 | N49: 2.444751141 | O49: 572.9518774 | P49: 2.444751141 | Q49: 2.444751141 | R49: 526.165208 | S49: 2.444751141 | T49: 2.444751141 | U49: 720.8104264 | V49: 300 | W49: 100 | X49: 50 | Y49: 25 | Z49: 20
C50: 13 | D50: 143.9691001 | E50: 13 | F50: 19.95262315 | G50: 2.63343538 | H50: 2.63343538 | I50: 301.4756824 | J50: 2.63343538 | K50: 2.63343538 | L50: 378.266658 | M50: 2.63343538 | N50: 2.63343538 | O50: 617.1719158 | P50: 2.63343538 | Q50: 2.63343538 | R50: 566.7742828 | S50: 2.63343538 | T50: 2.63343538 | U50: 776.4420876 | V50: 300 | W50: 100 | X50: 50 | Y50: 25 | Z50: 20
C51: 14 | D51: 142.9691001 | E51: 14 | F51: 25.11886432 | G51: 2.824212158 | H51: 2.824212158 | I51: 323.3158078 | J51: 2.824212158 | K51: 2.824212158 | L51: 405.6698343 | M51: 2.824212158 | N51: 2.824212158 | O51: 661.8823613 | P51: 2.824212158 | Q51: 2.824212158 | R51: 607.8337187 | S51: 2.824212158 | T51: 2.824212158 | U51: 832.6907126 | V51: 300 | W51: 100 | X51: 50 | Y51: 25 | Z51: 20
C52: 15 | D52: 141.9691001 | E52: 15 | F52: 31.6227766 | G52: 3.016684604 | H52: 3.016684604 | I52: 345.3500535 | J52: 3.016684604 | K52: 3.016684604 | L52: 433.3165765 | M52: 3.016684604 | N52: 3.016684604 | O52: 706.9902038 | P52: 3.016684604 | Q52: 3.016684604 | R52: 649.2581005 | S52: 3.016684604 | T52: 3.016684604 | U52: 889.4392886 | V52: 300 | W52: 100 | X52: 50 | Y52: 25 | Z52: 20
C53: 16 | D53: 140.9691001 | E53: 16 | F53: 39.81071706 | G53: 3.210525693 | H53: 3.210525693 | I53: 367.5409813 | J53: 3.210525693 | K53: 3.210525693 | L53: 461.1599105 | M53: 3.210525693 | N53: 3.210525693 | O53: 752.4188013 | P53: 3.210525693 | Q53: 3.210525693 | R53: 690.9770448 | S53: 3.210525693 | T53: 3.210525693 | U53: 946.5913952 | V53: 300 | W53: 100 | X53: 50 | Y53: 25 | Z53: 20
C54: 17 | D54: 139.9691001 | E54: 17 | F54: 50.11872336 | G54: 3.405467941 | H54: 3.405467941 | I54: 389.8579699 | J54: 3.405467941 | K54: 3.405467941 | L54: 489.1614151 | M54: 3.405467941 | N54: 3.405467941 | O54: 798.1054667 | P54: 3.405467941 | Q54: 3.405467941 | R54: 732.9329834 | S54: 3.405467941 | T54: 3.405467941 | U54: 1004.068168 | V54: 300 | W54: 100 | X54: 50 | Y54: 25 | Z54: 20
C55: 18 | D55: 138.9691001 | E55: 18 | F55: 63.09573445 | G55: 3.601293866 | H55: 3.601293866 | I55: 412.2761218 | J55: 3.601293866 | K55: 3.601293866 | L55: 517.289851 | M55: 3.601293866 | N55: 3.601293866 | O55: 843.9992305 | P55: 3.601293866 | Q55: 3.601293866 | R55: 775.079109 | S55: 3.601293866 | T55: 3.601293866 | U55: 1061.805484 | V55: 300 | W55: 100 | X55: 50 | Y55: 25 | Z55: 20
C56: 19 | D56: 137.9691001 | E56: 19 | F56: 79.43282347 | G56: 3.797827476 | H56: 3.797827476 | I56: 434.7752894 | J56: 3.797827476 | K56: 3.797827476 | L56: 545.5199386 | M56: 3.797827476 | N56: 3.797827476 | O56: 890.0588472 | P56: 3.797827476 | Q56: 3.797827476 | R56: 817.3775441 | S56: 3.797827476 | T56: 3.797827476 | U56: 1119.751453 | V56: 300 | W56: 100 | X56: 50 | Y56: 25 | Z56: 20
C57: 20 | D57: 136.9691001 | E57: 20 | F57: 100 | G57: 3.99492689 | H57: 3.99492689 | I57: 457.3392303 | J57: 3.99492689 | K57: 3.99492689 | L57: 573.8312984 | M57: 3.99492689 | N57: 3.99492689 | O57: 936.2510659 | P57: 3.99492689 | Q57: 3.99492689 | R57: 859.797753 | S57: 3.99492689 | T57: 3.99492689 | U57: 1177.864244 | V57: 300 | W57: 100 | X57: 50 | Y57: 25 | Z57: 20
C58: 21 | D58: 135.9691001 | E58: 21 | F58: 125.8925412 | G58: 4.192478075 | H58: 4.192478075 | I58: 479.9548901 | J58: 4.192478075 | K58: 4.192478075 | L58: 602.2075507 | M58: 4.192478075 | N58: 4.192478075 | O58: 982.5491617 | P58: 4.192478075 | Q58: 4.192478075 | R58: 902.3151933 | S58: 4.192478075 | T58: 4.192478075 | U58: 1236.110236 | V58: 300 | W58: 100 | X58: 50 | Y58: 25 | Z58: 20
C59: 22 | D59: =DL_EIRP-(C59+DL_NormNoise)+DL_Rxgain -> 134.9691001 | E59: =IF(DL_Plot=$C$26,C59,IF($C$7=$D$26,D59,0)) -> 22 | F59: =10^(C59/10) -> 158.4893192 | G59: =DL_alpha*LOG(1 +($F59*$O$20),2) -> 4.390389601 | H59: =IF(G59<=$N$20,G59,$N$20) -> 4.390389601 | I59: =$H59*$G$20*$M$20*$C$20*DL_ratio -> 502.6118015 | J59: =DL_alpha*LOG(1 +($F59*$O$21),2) -> 4.390389601 | K59: =IF(J59<=$N$20,J59,$N$20) -> 4.390389601 | L59: =$K59*$G$21*$M$21*$C$21*DL_ratio -> 630.6355623 | M59: =DL_alpha*LOG(1 +($F59*$O$22),2) -> 4.390389601 | N59: =IF(M59<=$N$20,M59,$N$20) -> 4.390389601 | O59: =$N59*$G$22*$M$22*$C$22*DL_ratio -> 1028.931707 | P59: =DL_alpha*LOG(1 +($F59*$O$23),2) -> 4.390389601 | Q59: =IF(P59<=$N$20,P59,$N$20) -> 4.390389601 | R59: =$Q59*$G$23*$M$23*$C$23*DL_ratio -> 944.9101869 | S59: =DL_alpha*LOG(1 +($F59*$O$24),2) -> 4.390389601 | T59: =IF(S59<=$N$20,S59,$N$20) -> 4.390389601 | U59: =$T59*$G$24*$M$24*$C$24*DL_ratio -> 1294.46247 | V59: =IF($D$11="yes",$C$11,"") -> 300 | W59: =IF($D$12="yes",$C$12,"") -> 100 | X59: =IF($D$13="yes",$C$13,"") -> 50 | Y59: =IF($D$14="yes",$C$14,"") -> 25 | Z59: =IF($D$15="yes",$C$15,"") -> 20
C60: 23 | D60: 133.9691001 | E60: 23 | F60: 199.5262315 | G60: 4.588588297 | H60: 4.588588297 | I60: 525.3015883 | J60: 4.588588297 | K60: 4.588588297 | L60: 659.1048231 | M60: 4.588588297 | N60: 4.588588297 | O60: 1075.381553 | P60: 4.588588297 | Q60: 4.588588297 | R60: 987.566986 | S60: 4.588588297 | T60: 4.588588297 | U60: 1352.899374 | V60: 300 | W60: 100 | X60: 50 | Y60: 25 | Z60: 20
C61: 24 | D61: 132.9691001 | E61: 24 | F61: 251.1886432 | G61: 4.787015699 | H61: 4.787015699 | I61: 548.0175572 | J61: 4.787015699 | K61: 4.787015699 | L61: 687.606935 | M61: 4.787015699 | N61: 4.787015699 | O61: 1121.884999 | P61: 4.787015699 | Q61: 4.787015699 | R61: 1030.273008 | S61: 4.787015699 | T61: 4.787015699 | U61: 1411.403709 | V61: 300 | W61: 100 | X61: 50 | Y61: 25 | Z61: 20
C62: 25 | D62: 131.9691001 | E62: 25 | F62: 316.227766 | G62: 4.985625145 | H62: 4.985625145 | I62: 570.7543666 | J62: 4.985625145 | K62: 4.985625145 | L62: 716.1351958 | M62: 4.985625145 | N62: 4.985625145 | O62: 1168.431109 | P62: 4.985625145 | Q62: 4.985625145 | R62: 1073.018209 | S62: 4.985625145 | T62: 4.985625145 | U62: 1469.961718 | V62: 300 | W62: 100 | X62: 50 | Y62: 25 | Z62: 20
C63: 26 | D63: 130.9691001 | E63: 26 | F63: 398.1071706 | G63: 5.184379433 | H63: 5.184379433 | I63: 593.5077575 | J63: 5.184379433 | K63: 5.184379433 | L63: 744.6842618 | M63: 5.184379433 | N63: 5.184379433 | O63: 1215.011164 | P63: 5.184379433 | Q63: 5.184379433 | R63: 1115.794584 | S63: 5.184379433 | T63: 5.184379433 | U63: 1528.562432 | V63: 300 | W63: 100 | X63: 50 | Y63: 25 | Z63: 20
C64: 27 | D64: 129.9691001 | E64: 27 | F64: 501.1872336 | G64: 5.383248926 | H64: 5.383248926 | I64: 616.274337 | J64: 5.383248926 | K64: 5.383248926 | L64: 773.2498757 | M64: 5.383248926 | N64: 5.383248926 | O64: 1261.618218 | P64: 5.383248926 | Q64: 5.383248926 | R64: 1158.595754 | S64: 5.383248926 | T64: 5.383248926 | U64: 1587.197113 | V64: 300 | W64: 100 | X64: 50 | Y64: 25 | Z64: 20
C65: 28 | D65: 128.9691001 | E65: 28 | F65: 630.9573445 | G65: 5.582210024 | H65: 5.582210024 | I65: 639.0514035 | J65: 5.582210024 | K65: 5.582210024 | L65: 801.8286478 | M65: 5.582210024 | N65: 5.582210024 | O65: 1308.246741 | P65: 5.582210024 | Q65: 5.582210024 | R65: 1201.416639 | S65: 5.582210024 | T65: 5.582210024 | U65: 1645.858803 | V65: 300 | W65: 100 | X65: 50 | Y65: 25 | Z65: 20
C66: 29 | D66: 127.9691001 | E66: 29 | F66: 794.3282347 | G66: 5.781243947 | H66: 5.781243947 | I66: 661.8368071 | J66: 5.781243947 | K66: 5.781243947 | L66: 830.4178805 | M66: 5.781243947 | N66: 5.781243947 | O66: 1354.892331 | P66: 5.781243947 | Q66: 5.781243947 | R66: 1244.253197 | S66: 5.781243947 | T66: 5.781243947 | U66: 1704.541965 | V66: 300 | W66: 100 | X66: 50 | Y66: 25 | Z66: 20
C67: 30 | D67: 126.9691001 | E67: 30 | F67: 1000 | G67: 5.980335755 | H67: 5.94475 | I67: 680.55498 | J67: 5.980335755 | K67: 5.94475 | L67: 853.90389 | M67: 5.980335755 | N67: 5.94475 | O67: 1393.21161 | P67: 5.980335755 | Q67: 5.94475 | R67: 1279.443362 | S67: 5.980335755 | T67: 5.94475 | U67: 1752.75009 | V67: 300 | W67: 100 | X67: 50 | Y67: 25 | Z67: 20
C68: 31 | D68: 125.9691001 | E68: 31 | F68: 1258.925412 | G68: 6.179473568 | H68: 5.94475 | I68: 680.55498 | J68: 6.179473568 | K68: 5.94475 | L68: 853.90389 | M68: 6.179473568 | N68: 5.94475 | O68: 1393.21161 | P68: 6.179473568 | Q68: 5.94475 | R68: 1279.443362 | S68: 6.179473568 | T68: 5.94475 | U68: 1752.75009 | V68: 300 | W68: 100 | X68: 50 | Y68: 25 | Z68: 20
C69: 32 | D69: 124.9691001 | E69: 32 | F69: 1584.893192 | G69: 6.378647937 | H69: 5.94475 | I69: 680.55498 | J69: 6.378647937 | K69: 5.94475 | L69: 853.90389 | M69: 6.378647937 | N69: 5.94475 | O69: 1393.21161 | P69: 6.378647937 | Q69: 5.94475 | R69: 1279.443362 | S69: 6.378647937 | T69: 5.94475 | U69: 1752.75009 | V69: 300 | W69: 100 | X69: 50 | Y69: 25 | Z69: 20
C70: 33 | D70: 123.9691001 | E70: 33 | F70: 1995.262315 | G70: 6.577851355 | H70: 5.94475 | I70: 680.55498 | J70: 6.577851355 | K70: 5.94475 | L70: 853.90389 | M70: 6.577851355 | N70: 5.94475 | O70: 1393.21161 | P70: 6.577851355 | Q70: 5.94475 | R70: 1279.443362 | S70: 6.577851355 | T70: 5.94475 | U70: 1752.75009 | V70: 300 | W70: 100 | X70: 50 | Y70: 25 | Z70: 20
C71: 34 | D71: 122.9691001 | E71: 34 | F71: 2511.886432 | G71: 6.777077853 | H71: 5.94475 | I71: 680.55498 | J71: 6.777077853 | K71: 5.94475 | L71: 853.90389 | M71: 6.777077853 | N71: 5.94475 | O71: 1393.21161 | P71: 6.777077853 | Q71: 5.94475 | R71: 1279.443362 | S71: 6.777077853 | T71: 5.94475 | U71: 1752.75009 | V71: 300 | W71: 100 | X71: 50 | Y71: 25 | Z71: 20
C72: 35 | D72: 121.9691001 | E72: 35 | F72: 3162.27766 | G72: 6.976322688 | H72: 5.94475 | I72: 680.55498 | J72: 6.976322688 | K72: 5.94475 | L72: 853.90389 | M72: 6.976322688 | N72: 5.94475 | O72: 1393.21161 | P72: 6.976322688 | Q72: 5.94475 | R72: 1279.443362 | S72: 6.976322688 | T72: 5.94475 | U72: 1752.75009 | V72: 300 | W72: 100 | X72: 50 | Y72: 25 | Z72: 20
C73: 36 | D73: 120.9691001 | E73: 36 | F73: 3981.071706 | G73: 7.175582091 | H73: 5.94475 | I73: 680.55498 | J73: 7.175582091 | K73: 5.94475 | L73: 853.90389 | M73: 7.175582091 | N73: 5.94475 | O73: 1393.21161 | P73: 7.175582091 | Q73: 5.94475 | R73: 1279.443362 | S73: 7.175582091 | T73: 5.94475 | U73: 1752.75009 | V73: 300 | W73: 100 | X73: 50 | Y73: 25 | Z73: 20
C74: 37 | D74: 119.9691001 | E74: 37 | F74: 5011.872336 | G74: 7.374853067 | H74: 5.94475 | I74: 680.55498 | J74: 7.374853067 | K74: 5.94475 | L74: 853.90389 | M74: 7.374853067 | N74: 5.94475 | O74: 1393.21161 | P74: 7.374853067 | Q74: 5.94475 | R74: 1279.443362 | S74: 7.374853067 | T74: 5.94475 | U74: 1752.75009 | V74: 300 | W74: 100 | X74: 50 | Y74: 25 | Z74: 20
C75: 38 | D75: 118.9691001 | E75: 38 | F75: 6309.573445 | G75: 7.574133237 | H75: 5.94475 | I75: 680.55498 | J75: 7.574133237 | K75: 5.94475 | L75: 853.90389 | M75: 7.574133237 | N75: 5.94475 | O75: 1393.21161 | P75: 7.574133237 | Q75: 5.94475 | R75: 1279.443362 | S75: 7.574133237 | T75: 5.94475 | U75: 1752.75009 | V75: 300 | W75: 100 | X75: 50 | Y75: 25 | Z75: 20
C76: 39 | D76: 117.9691001 | E76: 39 | F76: 7943.282347 | G76: 7.77342071 | H76: 5.94475 | I76: 680.55498 | J76: 7.77342071 | K76: 5.94475 | L76: 853.90389 | M76: 7.77342071 | N76: 5.94475 | O76: 1393.21161 | P76: 7.77342071 | Q76: 5.94475 | R76: 1279.443362 | S76: 7.77342071 | T76: 5.94475 | U76: 1752.75009 | V76: 300 | W76: 100 | X76: 50 | Y76: 25 | Z76: 20
C77: 40 | D77: 116.9691001 | E77: 40 | F77: 10000 | G77: 7.972713985 | H77: 5.94475 | I77: 680.55498 | J77: 7.972713985 | K77: 5.94475 | L77: 853.90389 | M77: 7.972713985 | N77: 5.94475 | O77: 1393.21161 | P77: 7.972713985 | Q77: 5.94475 | R77: 1279.443362 | S77: 7.972713985 | T77: 5.94475 | U77: 1752.75009 | V77: 300 | W77: 100 | X77: 50 | Y77: 25 | Z77: 20

Sheet UL linkLevel
A1: Uplink Link Level Throughput Calculations
F2: Plot configurations check
B3: Parameter | F3: UL 0.25 New - SINR
B4: BS type | C4: =BS_type -> Macro | D4: change on Inputs sheet | F4: =VLOOKUP('UL linkLevel'!$F$3,Inputs!$B$98:$L$106,3,FALSE) -> Macro | G4: =F4=C4 -> TRUE
B5: DL/UL ratio | C5: 0.25 | D5: UL_ratio | F5: =VLOOKUP('UL linkLevel'!$F$3,Inputs!$B$98:$L$106,2,FALSE) -> 0.25 | G5: =F5=C5 -> TRUE
B6: Scale Power | C6: No | D6: UL_scale | F6: =VLOOKUP('UL linkLevel'!$F$3,Inputs!$B$98:$L$106,6,FALSE) -> No | G6: =F6=C6 -> TRUE
B7: Plot | C7: SINR per layer (dB) | D7: UL_Plot | F7: =VLOOKUP('UL linkLevel'!$F$3,Inputs!$B$98:$L$106,5,FALSE) -> SINR per layer (dB) | G7: =F7=C7 -> TRUE
B8: Plot title | C8: =CONCATENATE("Uplink SUT Distribution (Uplink ",UL_ratio*100,"%)") -> Uplink SUT Distribution (Uplink 25%)
B10: Services | C10: Mbps | D10: Plot?
B11: =Inputs!B35 -> Mobile broadband live video; Cloud computer games for connected vehicles with 4K 3D graphics | C11: =Inputs!C35 -> 50 | D11: Yes | F11: =VLOOKUP('UL linkLevel'!$F$3,Inputs!$B$98:$L$106,7,FALSE) -> Yes | G11: =F11=D11 -> TRUE
B12: =Inputs!B36 -> Industrial control | C12: =Inputs!C36 -> 25 | D12: No | F12: =VLOOKUP('UL linkLevel'!$F$3,Inputs!$B$98:$L$106,8,FALSE) -> No | G12: =F12=D12 -> TRUE
B13: =Inputs!B37 -> Connectivity for drones | C13: =Inputs!C37 -> 20 | D13: Yes | F13: =VLOOKUP('UL linkLevel'!$F$3,Inputs!$B$98:$L$106,9,FALSE) -> Yes | G13: TRUE
B14: =Inputs!B38 -> 0 | C14: =Inputs!C38 -> 0 | D14: No | F14: =VLOOKUP('UL linkLevel'!$F$3,Inputs!$B$98:$L$106,10,FALSE) -> No | G14: TRUE
B15: =Inputs!B39 -> 0 | C15: =Inputs!C39 -> 0 | D15: No | F15: =VLOOKUP('UL linkLevel'!$F$3,Inputs!$B$98:$L$106,11,FALSE) -> No | G15: TRUE
B17: Spectrum Scenarios | C17: UL New | F17: =VLOOKUP('UL linkLevel'!$F$3,Inputs!$B$98:$L$106,4,FALSE) -> UL New | G17: =F17=C17 -> TRUE
B18: lookup offset | C18: =VLOOKUP('UL linkLevel'!C17,Inputs!B9:'Inputs'!C10,2,FALSE) -> 1 | E18: UL_scenario_offset | J18: lookuptable offset | K18: 2 | L18: 2
C19: No. Layers | D19: SCS (kHz) | E19: BW1 (MHz) | F19: BW2 (MHz) | G19: CA Scaling (reduce 6% if 2 carriers) | H19: total carrier BW | I19: mu (factor for the throughput calc) | J19: NRB1 (looked up from table above based on BW1, SCS hard coded) | K19: NRB2 (looked up from table above based on BW2, SCS hard coded) | L19: Max_tput (Mbps) calc based on 5G NR throughput rate calc | M19: Transmission BW (MHz) | N19: spec Efficiency/ T-BW layer @100% (bps/Hz) | O19: SINR scaling for Power/carriers | P19: Scenario description
A20: 1 | B20: Scenario 1 | C20: =HLOOKUP(C$19,Inputs!$B$65:$G$80,UL_scenario_offset+$A20,FALSE) -> 2 | D20: =HLOOKUP(D$19,Inputs!$B$65:$G$80,UL_scenario_offset+$A20,FALSE) -> 30 | E20: =HLOOKUP(E$19,Inputs!$B$65:$G$80,UL_scenario_offset+$A20,FALSE) -> 40 | F20: =HLOOKUP(F$19,Inputs!$B$65:$G$80,UL_scenario_offset+$A20,FALSE) -> 0 | G20: =IF(F20=0,1,1-CA_Loss) -> 1 | H20: =SUM(E20:F20) -> 40 | I20: =VLOOKUP(D20,Inputs!$F$7:$G$9,2,FALSE) -> 1 | J20: =IF(E20>0,HLOOKUP(E20,Inputs!$H$6:$O$9,$I20+$K$18,FALSE),) -> 106 | K20: =IF(F20>0,HLOOKUP(F20,Inputs!$H$6:$O$9,$I20+$K$18,FALSE),) -> 0 | L20: =C20*UL_ratio*UL_Qm*UL_f*UL_Rmax*(1-UL_OH)*Subcarriers*Symbols*(2^I20)*(J20+K20)/1000 -> 91.004445 | M20: =((D20*12*J20)+(D20*12*K20))/1000 -> 38.16 | N20: =IF(L20>0,L20/(M20*C20*UL_ratio),"") -> 4.769625 | O20: =IF(UL_scale="Yes",UL_NormBW*UL_NormLayers/(M20*C20),1) -> 1 | P20: =HLOOKUP(P$19,Inputs!$B$65:$G$80,UL_scenario_offset+$A20,FALSE) -> Single carrier, 2 layers, scs 30 kHz, 40 MHz
A21: 2 | B21: Scenario 2 | C21: =HLOOKUP(C$19,Inputs!$B$65:$G$80,UL_scenario_offset+$A21,FALSE) -> 2 | D21: =HLOOKUP(D$19,Inputs!$B$65:$G$80,UL_scenario_offset+$A21,FALSE) -> 30 | E21: =HLOOKUP(E$19,Inputs!$B$65:$G$80,UL_scenario_offset+$A21,FALSE) -> 50 | F21: =HLOOKUP(F$19,Inputs!$B$65:$G$80,UL_scenario_offset+$A21,FALSE) -> 0 | G21: =IF(F21=0,1,1-CA_Loss) -> 1 | H21: =SUM(E21:F21) -> 50 | I21: =VLOOKUP(D21,Inputs!$F$7:$G$9,2,FALSE) -> 1 | J21: =IF(E21>0,HLOOKUP(E21,Inputs!$H$6:$O$9,$I21+$K$18,FALSE),) -> 133 | K21: =IF(F21>0,HLOOKUP(F21,Inputs!$H$6:$O$9,$I21+$K$18,FALSE),) -> 0 | L21: =C21*UL_ratio*UL_Qm*UL_f*UL_Rmax*(1-UL_OH)*Subcarriers*Symbols*(2^I21)*(J21+K21)/1000 -> 114.1848225 | M21: =((D21*12*J21)+(D21*12*K21))/1000 -> 47.88 | N21: =IF(L21>0,L21/(M21*C21*UL_ratio),"") -> 4.769625 | O21: =IF(UL_scale="Yes",UL_NormBW*UL_NormLayers/(M21*C21),1) -> 1 | P21: =HLOOKUP(P$19,Inputs!$B$65:$G$80,UL_scenario_offset+$A21,FALSE) -> Single carrier, 2 layers, scs 30 kHz, 50 MHz
A22: 3 | B22: Scenario 3 | C22: =HLOOKUP(C$19,Inputs!$B$65:$G$80,UL_scenario_offset+$A22,FALSE) -> 2 | D22: =HLOOKUP(D$19,Inputs!$B$65:$G$80,UL_scenario_offset+$A22,FALSE) -> 30 | E22: =HLOOKUP(E$19,Inputs!$B$65:$G$80,UL_scenario_offset+$A22,FALSE) -> 80 | F22: =HLOOKUP(F$19,Inputs!$B$65:$G$80,UL_scenario_offset+$A22,FALSE) -> 0 | G22: =IF(F22=0,1,1-CA_Loss) -> 1 | H22: =SUM(E22:F22) -> 80 | I22: =VLOOKUP(D22,Inputs!$F$7:$G$9,2,FALSE) -> 1 | J22: =IF(E22>0,HLOOKUP(E22,Inputs!$H$6:$O$9,$I22+$K$18,FALSE),) -> 217 | K22: =IF(F22>0,HLOOKUP(F22,Inputs!$H$6:$O$9,$I22+$K$18,FALSE),) -> 0 | L22: =C22*UL_ratio*UL_Qm*UL_f*UL_Rmax*(1-UL_OH)*Subcarriers*Symbols*(2^I22)*(J22+K22)/1000 -> 186.3015525 | M22: =((D22*12*J22)+(D22*12*K22))/1000 -> 78.12 | N22: =IF(L22>0,L22/(M22*C22*UL_ratio),"") -> 4.769625 | O22: =IF(UL_scale="Yes",UL_NormBW*UL_NormLayers/(M22*C22),1) -> 1 | P22: =HLOOKUP(P$19,Inputs!$B$65:$G$80,UL_scenario_offset+$A22,FALSE) -> Single carrier, 2 layers, scs 30 kHz, 80 MHz
A23: 4 | B23: Scenario 4 | C23: =HLOOKUP(C$19,Inputs!$B$65:$G$80,UL_scenario_offset+$A23,FALSE) -> 2 | D23: =HLOOKUP(D$19,Inputs!$B$65:$G$80,UL_scenario_offset+$A23,FALSE) -> 30 | E23: =HLOOKUP(E$19,Inputs!$B$65:$G$80,UL_scenario_offset+$A23,FALSE) -> 100 | F23: =HLOOKUP(F$19,Inputs!$B$65:$G$80,UL_scenario_offset+$A23,FALSE) -> 0 | G23: =IF(F23=0,1,1-CA_Loss) -> 1 | H23: =SUM(E23:F23) -> 100 | I23: =VLOOKUP(D23,Inputs!$F$7:$G$9,2,FALSE) -> 1 | J23: =IF(E23>0,HLOOKUP(E23,Inputs!$H$6:$O$9,$I23+$K$18,FALSE),) -> 273 | K23: =IF(F23>0,HLOOKUP(F23,Inputs!$H$6:$O$9,$I23+$K$18,FALSE),) -> 0 | L23: =C23*UL_ratio*UL_Qm*UL_f*UL_Rmax*(1-UL_OH)*Subcarriers*Symbols*(2^I23)*(J23+K23)/1000 -> 234.3793725 | M23: =((D23*12*J23)+(D23*12*K23))/1000 -> 98.28 | N23: =IF(L23>0,L23/(M23*C23*UL_ratio),"") -> 4.769625 | O23: =IF(UL_scale="Yes",UL_NormBW*UL_NormLayers/(M23*C23),1) -> 1 | P23: =HLOOKUP(P$19,Inputs!$B$65:$G$80,UL_scenario_offset+$A23,FALSE) -> Single carrier, 2 layers, scs 30 kHz, 100 MHz
A24: 5 | B24: Scenario 5 | C24: =HLOOKUP(C$19,Inputs!$B$65:$G$80,UL_scenario_offset+$A24,FALSE) -> 2 | D24: =HLOOKUP(D$19,Inputs!$B$65:$G$80,UL_scenario_offset+$A24,FALSE) -> 30 | E24: =HLOOKUP(E$19,Inputs!$B$65:$G$80,UL_scenario_offset+$A24,FALSE) -> 0 | F24: =HLOOKUP(F$19,Inputs!$B$65:$G$80,UL_scenario_offset+$A24,FALSE) -> 0 | G24: =IF(F24=0,1,1-CA_Loss) -> 1 | H24: =SUM(E24:F24) -> 0 | I24: =VLOOKUP(D24,Inputs!$F$7:$G$9,2,FALSE) -> 1 | J24: =IF(E24>0,HLOOKUP(E24,Inputs!$H$6:$O$9,$I24+$K$18,FALSE),) -> 0 | K24: =IF(F24>0,HLOOKUP(F24,Inputs!$H$6:$O$9,$I24+$K$18,FALSE),) -> 0 | L24: =C24*UL_ratio*UL_Qm*UL_f*UL_Rmax*(1-UL_OH)*Subcarriers*Symbols*(2^I24)*(J24+K24)/1000 -> 0 | M24: =((D24*12*J24)+(D24*12*K24))/1000 -> 0 | N24: =IF(L24>0,L24/(M24*C24*UL_ratio),"") ->  | O24: =IF(UL_scale="Yes",UL_NormBW*UL_NormLayers/(M24*C24),1) -> 1 | P24: =HLOOKUP(P$19,Inputs!$B$65:$G$80,UL_scenario_offset+$A24,FALSE) -> 0
G25: =B20 -> Scenario 1 | J25: =B21 -> Scenario 2 | M25: =B22 -> Scenario 3 | P25: =B23 -> Scenario 4 | S25: =B24 -> Scenario 5 | V25: Service Lines
C26: SINR per layer (dB) | D26: Pathloss (dB) | E26: x-axis (dB) | F26: SNR (linear) | G26: Spec Efficiency per layer | H26: Spec Eff truncated (bit/Hz) | I26: =INDEX(Inputs!$B$65:$G$80,UL_scenario_offset+$A20,1) -> 40 MHz TDD 2x2 SU-MIMO | J26: Spec Efficiency per layer | K26: Spec Eff truncated (bit/Hz) | L26: =INDEX(Inputs!$B$65:$G$80,UL_scenario_offset+$A21,1) -> 50 MHz TDD 2x2 SU-MIMO | M26: Spec Efficiency per layer | N26: Spec Eff truncated (bit/Hz) | O26: =INDEX(Inputs!$B$65:$G$80,UL_scenario_offset+$A22,1) -> 80 MHz TDD 2x2 SU-MIMO | P26: Spec Efficiency per layer | Q26: Spec Eff truncated (bit/Hz) | R26: =INDEX(Inputs!$B$65:$G$80,UL_scenario_offset+$A23,1) -> 100 MHz TDD 2x2 SU-MIMO | S26: Spec Efficiency per layer | T26: Spec Eff truncated (bit/Hz) | U26: =INDEX(Inputs!$B$65:$G$80,UL_scenario_offset+$A24,1) -> 0 | V26: =IF($D$11="yes",B11,"service 1") -> Mobile broadband live video; Cloud computer games for connected vehicles with 4K 3D graphics | W26: =IF($D$12="yes",B12,"service 2") -> service 2 | X26: =IF($D$13="yes",B13,"service 3") -> Connectivity for drones | Y26: =IF($D$14="yes",B14,"service 4") -> service 4 | Z26: =IF($D$15="yes",B15,"service 5") -> service 5
C27: -10 | D27: =UL_EIRP-(C27+UL_NormNoise)+UL_Rxgain -> 143.0650486 | E27: =IF(UL_Plot=$C$26,C27,IF($C$7=$D$26,D27,0)) -> -10 | F27: =10^(C27/10) -> 0.1 | G27: =UL_alpha*LOG(1 +(F27*$O$20),2) -> 0.07562693806 | H27: =IF(G27<=$N$20,G27,$N$20) -> 0.07562693806 | I27: =$H27*$G$20*$M$20*$C$20*UL_ratio -> 1.442961978 | J27: =UL_alpha*LOG(1 +(F27*$O$21),2) -> 0.07562693806 | K27: =IF(J27<=$N$21,J27,$N$20) -> 0.07562693806 | L27: =$K27*$G$21*$M$21*$C$21*UL_ratio -> 1.810508897 | M27: =UL_alpha*LOG(1 +(F27*$O$22),2) -> 0.07562693806 | N27: =IF(M27<=$N$20,M27,$N$20) -> 0.07562693806 | O27: =$N27*$G$22*$M$22*$C$22*UL_ratio -> 2.953988201 | P27: =UL_alpha*LOG(1 +(F27*$O$23),2) -> 0.07562693806 | Q27: =IF(P27<=$N$20,P27,$N$20) -> 0.07562693806 | R27: =$Q27*$G$23*$M$23*$C$23*UL_ratio -> 3.716307736 | S27: =UL_alpha*LOG(1 +(F27*$O$24),2) -> 0.07562693806 | T27: =IF(S27<=$N$20,S27,$N$20) -> 0.07562693806 | U27: =$T27*$G$24*$M$24*$C$24*UL_ratio -> 0 | V27: =IF($D$11="yes",$C$11,"") -> 50 | W27: =IF($D$12="yes",$C$12,"") ->  | X27: =IF($D$13="yes",$C$13,"") -> 20 | Y27: =IF($D$14="yes",$C$14,"") ->  | Z27: =IF($D$15="yes",$C$15,"") -> 
C28: -9 | D28: 142.0650486 | E28: -9 | F28: 0.1258925412 | G28: 0.09408802618 | H28: 0.09408802618 | I28: 1.79519954 | J28: 0.09408802618 | K28: 0.09408802618 | L28: 2.252467347 | M28: 0.09408802618 | N28: 0.09408802618 | O28: 3.675078303 | P28: 0.09408802618 | Q28: 0.09408802618 | R28: 4.623485607 | S28: 0.09408802618 | T28: 0.09408802618 | U28: 0 | V28: 50 | X28: 20
C29: -8 | D29: 141.0650486 | E29: -8 | F29: 0.1584893192 | G29: 0.1167346088 | H29: 0.1167346088 | I29: 2.227296336 | J29: 0.1167346088 | K29: 0.1167346088 | L29: 2.794626535 | M29: 0.1167346088 | N29: 0.1167346088 | O29: 4.559653819 | P29: 0.1167346088 | Q29: 0.1167346088 | R29: 5.736338676 | S29: 0.1167346088 | T29: 0.1167346088 | U29: 0 | V29: 50 | X29: 20
C30: -7 | D30: 140.0650486 | E30: -7 | F30: 0.1995262315 | G30: 0.1443555889 | H30: 0.1443555889 | I30: 2.754304637 | J30: 0.1443555889 | K30: 0.1443555889 | L30: 3.455872799 | M30: 0.1443555889 | N30: 0.1443555889 | O30: 5.638529304 | P30: 0.1443555889 | Q30: 0.1443555889 | R30: 7.09363364 | S30: 0.1443555889 | T30: 0.1443555889 | U30: 0 | V30: 50 | X30: 20
C31: -6 | D31: 139.0650486 | E31: -6 | F31: 0.2511886432 | G31: 0.1778146275 | H31: 0.1778146275 | I31: 3.392703092 | J31: 0.1778146275 | K31: 0.1778146275 | L31: 4.256882182 | M31: 0.1778146275 | N31: 0.1778146275 | O31: 6.945439349 | P31: 0.1778146275 | Q31: 0.1778146275 | R31: 8.737810794 | S31: 0.1778146275 | T31: 0.1778146275 | U31: 0 | V31: 50 | X31: 20
C32: -5 | D32: 138.0650486 | E32: -5 | F32: 0.316227766 | G32: 0.2180250386 | H32: 0.2180250386 | I32: 4.159917737 | J32: 0.2180250386 | K32: 0.2180250386 | L32: 5.219519425 | M32: 0.2180250386 | N32: 0.2180250386 | O32: 8.516058009 | P32: 0.2180250386 | Q32: 0.2180250386 | R32: 10.7137504 | S32: 0.2180250386 | T32: 0.2180250386 | U32: 0 | V32: 50 | X32: 20
C33: -4 | D33: 137.0650486 | E33: -4 | F33: 0.3981071706 | G33: 0.2659112243 | H33: 0.2659112243 | I33: 5.07358616 | J33: 0.2659112243 | K33: 0.2659112243 | L33: 6.365914711 | M33: 0.2659112243 | N33: 0.2659112243 | O33: 10.38649242 | P33: 0.2659112243 | Q33: 0.2659112243 | R33: 13.06687756 | S33: 0.2659112243 | T33: 0.2659112243 | U33: 0 | V33: 50 | X33: 20
C34: -3 | D34: 136.0650486 | E34: -3 | F34: 0.5011872336 | G34: 0.3223571595 | H34: 0.3223571595 | I34: 6.150574604 | J34: 0.3223571595 | K34: 0.3223571595 | L34: 7.7172304 | M34: 0.3223571595 | N34: 0.3223571595 | O34: 12.59127065 | P34: 0.3223571595 | Q34: 0.3223571595 | R34: 15.84063082 | S34: 0.3223571595 | T34: 0.3223571595 | U34: 0 | V34: 50 | X34: 20
C35: -2 | D35: 135.0650486 | E35: -2 | F35: 0.6309573445 | G35: 0.3881454779 | H35: 0.3881454779 | I35: 7.405815719 | J35: 0.3881454779 | K35: 0.3881454779 | L35: 9.292202742 | M35: 0.3881454779 | N35: 0.3881454779 | O35: 15.16096237 | P35: 0.3881454779 | Q35: 0.3881454779 | R35: 19.07346879 | S35: 0.3881454779 | T35: 0.3881454779 | U35: 0 | V35: 50 | X35: 20
C36: -1 | D36: 134.0650486 | E36: -1 | F36: 0.7943282347 | G36: 0.4638941039 | H36: 0.4638941039 | I36: 8.851099502 | J36: 0.4638941039 | K36: 0.4638941039 | L36: 11.10562485 | M36: 0.4638941039 | N36: 0.4638941039 | O36: 18.1197037 | P36: 0.4638941039 | Q36: 0.4638941039 | R36: 22.79575626 | S36: 0.4638941039 | T36: 0.4638941039 | U36: 0 | V36: 50 | X36: 20
C37: 0 | D37: 133.0650486 | E37: 0 | F37: 1 | G37: 0.55 | H37: 0.55 | I37: 10.494 | J37: 0.55 | K37: 0.55 | L37: 13.167 | M37: 0.55 | N37: 0.55 | O37: 21.483 | P37: 0.55 | Q37: 0.55 | R37: 27.027 | S37: 0.55 | T37: 0.55 | U37: 0 | V37: 50 | X37: 20
C38: 1 | D38: 132.0650486 | E38: 1 | F38: 1.258925412 | G38: 0.6466001491 | H38: 0.6466001491 | I38: 12.33713084 | J38: 0.6466001491 | K38: 0.6466001491 | L38: 15.47960757 | M38: 0.6466001491 | N38: 0.6466001491 | O38: 25.25620182 | P38: 0.6466001491 | Q38: 0.6466001491 | R38: 31.77393133 | S38: 0.6466001491 | T38: 0.6466001491 | U38: 0 | V38: 50 | X38: 20
C39: 2 | D39: 131.0650486 | E39: 2 | F39: 1.584893192 | G39: 0.7535575684 | H39: 0.7535575684 | I39: 14.3778784 | J39: 0.7535575684 | K39: 0.7535575684 | L39: 18.04016819 | M39: 0.7535575684 | N39: 0.7535575684 | O39: 29.43395862 | P39: 0.7535575684 | Q39: 0.7535575684 | R39: 37.02981891 | S39: 0.7535575684 | T39: 0.7535575684 | U39: 0 | V39: 50 | X39: 20
C40: 3 | D40: 130.0650486 | E40: 3 | F40: 1.995262315 | G40: 0.8704752952 | H40: 0.8704752952 | I40: 16.60866863 | J40: 0.8704752952 | K40: 0.8704752952 | L40: 20.83917857 | M40: 0.8704752952 | N40: 0.8704752952 | O40: 34.00076503 | P40: 0.8704752952 | Q40: 0.8704752952 | R40: 42.77515601 | S40: 0.8704752952 | T40: 0.8704752952 | U40: 0 | V40: 50 | X40: 20
C41: 4 | D41: 129.0650486 | E41: 4 | F41: 2.511886432 | G41: 0.9967354052 | H41: 0.9967354052 | I41: 19.01771153 | J41: 0.9967354052 | K41: 0.9967354052 | L41: 23.8618456 | M41: 0.9967354052 | N41: 0.9967354052 | O41: 38.93248493 | P41: 0.9967354052 | Q41: 0.9967354052 | R41: 48.97957781 | S41: 0.9967354052 | T41: 0.9967354052 | U41: 0 | V41: 50 | X41: 20
C42: 5 | D42: 128.0650486 | E42: 5 | F42: 3.16227766 | G42: 1.131555265 | H42: 1.131555265 | I42: 21.59007445 | J42: 1.131555265 | K42: 1.131555265 | L42: 27.08943304 | M42: 1.131555265 | N42: 1.131555265 | O42: 44.19854864 | P42: 1.131555265 | Q42: 1.131555265 | R42: 55.60462571 | S42: 1.131555265 | T42: 1.131555265 | U42: 0 | V42: 50 | X42: 20
C43: 6 | D43: 127.0650486 | E43: 6 | F43: 3.981071706 | G43: 1.274050899 | H43: 1.274050899 | I43: 24.30889115 | J43: 1.274050899 | K43: 1.274050899 | L43: 30.50077852 | M43: 1.274050899 | N43: 1.274050899 | O43: 49.76442811 | P43: 1.274050899 | Q43: 1.274050899 | R43: 62.60686117 | S43: 1.274050899 | T43: 1.274050899 | U43: 0 | V43: 50 | X43: 20
C44: 7 | D44: 126.0650486 | E44: 7 | F44: 5.011872336 | G44: 1.423297905 | H44: 1.423297905 | I44: 27.15652404 | J44: 1.423297905 | K44: 1.423297905 | L44: 34.07375186 | M44: 1.423297905 | N44: 1.423297905 | O44: 55.59401619 | P44: 1.423297905 | Q44: 1.423297905 | R44: 69.94085907 | S44: 1.423297905 | T44: 1.423297905 | U44: 0 | V44: 50 | X44: 20
C45: 8 | D45: 125.0650486 | E45: 8 | F45: 6.309573445 | G45: 1.578382971 | H45: 1.578382971 | I45: 30.11554708 | J45: 1.578382971 | K45: 1.578382971 | L45: 37.78648831 | M45: 1.578382971 | N45: 1.578382971 | O45: 61.65163883 | P45: 1.578382971 | Q45: 1.578382971 | R45: 77.56173917 | S45: 1.578382971 | T45: 1.578382971 | U45: 0 | V45: 50 | X45: 20
C46: 9 | D46: 124.0650486 | E46: 9 | F46: 7.943282347 | G46: 1.738442433 | H46: 1.738442433 | I46: 33.16948162 | J46: 1.738442433 | K46: 1.738442433 | L46: 41.61831185 | M46: 1.738442433 | N46: 1.738442433 | O46: 67.90356144 | P46: 1.738442433 | Q46: 1.738442433 | R46: 85.42706117 | S46: 1.738442433 | T46: 1.738442433 | U46: 0 | V46: 50 | X46: 20
C47: 10 | D47: 123.0650486 | E47: 10 | F47: 10 | G47: 1.90268739 | H47: 1.90268739 | I47: 36.30327541 | J47: 1.90268739 | K47: 1.90268739 | L47: 45.55033612 | M47: 1.90268739 | N47: 1.90268739 | O47: 74.31896946 | P47: 1.90268739 | Q47: 1.90268739 | R47: 93.49805836 | S47: 1.90268739 | T47: 1.90268739 | U47: 0 | V47: 50 | X47: 20
C48: 11 | D48: 122.0650486 | E48: 11 | F48: 12.58925412 | G48: 2.070416902 | H48: 2.070416902 | I48: 39.50355449 | J48: 2.070416902 | K48: 2.070416902 | L48: 49.56578063 | M48: 2.070416902 | N48: 2.070416902 | O48: 80.87048419 | P48: 2.070416902 | Q48: 2.070416902 | R48: 101.7402866 | S48: 2.070416902 | T48: 2.070416902 | U48: 0 | V48: 50 | X48: 20
C49: 12 | D49: 121.0650486 | E49: 12 | F49: 15.84893192 | G49: 2.241021879 | H49: 2.241021879 | I49: 42.75869746 | J49: 2.241021879 | K49: 2.241021879 | L49: 53.65006379 | M49: 2.241021879 | N49: 2.241021879 | O49: 87.5343146 | P49: 2.241021879 | Q49: 2.241021879 | R49: 110.1238151 | S49: 2.241021879 | T49: 2.241021879 | U49: 0 | V49: 50 | X49: 20
C50: 13 | D50: 120.0650486 | E50: 13 | F50: 19.95262315 | G50: 2.413982432 | H50: 2.413982432 | I50: 46.0587848 | J50: 2.413982432 | K50: 2.413982432 | L50: 57.79073942 | M50: 2.413982432 | N50: 2.413982432 | O50: 94.2901538 | P50: 2.413982432 | Q50: 2.413982432 | R50: 118.6230967 | S50: 2.413982432 | T50: 2.413982432 | U50: 0 | V50: 50 | X50: 20
C51: 14 | D51: 119.0650486 | E51: 14 | F51: 25.11886432 | G51: 2.588861145 | H51: 2.588861145 | I51: 49.39547064 | J51: 2.588861145 | K51: 2.588861145 | L51: 61.9773358 | M51: 2.588861145 | N51: 2.588861145 | O51: 101.1209163 | P51: 2.588861145 | Q51: 2.588861145 | R51: 127.2166366 | S51: 2.588861145 | T51: 2.588861145 | U51: 0 | V51: 50 | X51: 20
C52: 15 | D52: 118.0650486 | E52: 15 | F52: 31.6227766 | G52: 2.76529422 | H52: 2.76529422 | I52: 52.76181372 | J52: 2.76529422 | K52: 2.76529422 | L52: 66.20114364 | M52: 2.76529422 | N52: 2.76529422 | O52: 108.0123922 | P52: 2.76529422 | Q52: 2.76529422 | R52: 135.886558 | S52: 2.76529422 | T52: 2.76529422 | U52: 0 | V52: 50 | X52: 20
C53: 16 | D53: 117.0650486 | E53: 16 | F53: 39.81071706 | G53: 2.942981885 | H53: 2.942981885 | I53: 56.15209436 | J53: 2.942981885 | K53: 2.942981885 | L53: 70.45498632 | M53: 2.942981885 | N53: 2.942981885 | O53: 114.9528724 | P53: 2.942981885 | Q53: 2.942981885 | R53: 144.6181298 | S53: 2.942981885 | T53: 2.942981885 | U53: 0 | V53: 50 | X53: 20
C54: 17 | D54: 116.0650486 | E54: 17 | F54: 50.11872336 | G54: 3.121678946 | H54: 3.121678946 | I54: 59.56163429 | J54: 3.121678946 | K54: 3.121678946 | L54: 74.73299397 | M54: 3.121678946 | N54: 3.121678946 | O54: 121.9327796 | P54: 3.121678946 | Q54: 3.121678946 | R54: 153.3993034 | S54: 3.121678946 | T54: 3.121678946 | U54: 0 | V54: 50 | X54: 20
C55: 18 | D55: 115.0650486 | E55: 18 | F55: 63.09573445 | G55: 3.301186044 | H55: 3.301186044 | I55: 62.98662972 | J55: 3.301186044 | K55: 3.301186044 | L55: 79.0303939 | M55: 3.301186044 | N55: 3.301186044 | O55: 128.9443269 | P55: 3.301186044 | Q55: 3.301186044 | R55: 162.2202822 | S55: 3.301186044 | T55: 3.301186044 | U55: 0 | V55: 50 | X55: 20
C56: 19 | D56: 114.0650486 | E56: 19 | F56: 79.43282347 | G56: 3.481341853 | H56: 3.481341853 | I56: 66.42400255 | J56: 3.481341853 | K56: 3.481341853 | L56: 83.34332395 | M56: 3.481341853 | N56: 3.481341853 | O56: 135.9812128 | P56: 3.481341853 | Q56: 3.481341853 | R56: 171.0731386 | S56: 3.481341853 | T56: 3.481341853 | U56: 0 | V56: 50 | X56: 20
C57: 20 | D57: 113.0650486 | E57: 20 | F57: 100 | G57: 3.662016316 | H57: 3.662016316 | I57: 69.8712713 | J57: 3.662016316 | K57: 3.662016316 | L57: 87.66867059 | M57: 3.662016316 | N57: 3.662016316 | O57: 143.0383573 | P57: 3.662016316 | Q57: 3.662016316 | R57: 179.9514817 | S57: 3.662016316 | T57: 3.662016316 | U57: 0 | V57: 50 | X57: 20
C58: 21 | D58: 112.0650486 | E58: 21 | F58: 125.8925412 | G58: 3.843104902 | H58: 3.843104902 | I58: 73.32644154 | J58: 3.843104902 | K58: 3.843104902 | L58: 92.00393136 | M58: 3.843104902 | N58: 3.843104902 | O58: 150.1116775 | P58: 3.843104902 | Q58: 3.843104902 | R58: 188.8501749 | S58: 3.843104902 | T58: 3.843104902 | U58: 0 | V58: 50 | X58: 20
C59: 22 | D59: 111.0650486 | E59: 22 | F59: 158.4893192 | G59: 4.024523801 | H59: 4.024523801 | I59: 76.78791412 | J59: 4.024523801 | K59: 4.024523801 | L59: 96.3470998 | M59: 4.024523801 | N59: 4.024523801 | O59: 157.1978997 | P59: 4.024523801 | Q59: 4.024523801 | R59: 197.7650996 | S59: 4.024523801 | T59: 4.024523801 | U59: 0 | V59: 50 | X59: 20
C60: 23 | D60: 110.0650486 | E60: 23 | F60: 199.5262315 | G60: 4.206205939 | H60: 4.206205939 | I60: 80.25440932 | J60: 4.206205939 | K60: 4.206205939 | L60: 100.6965702 | M60: 4.206205939 | N60: 4.206205939 | O60: 164.294404 | P60: 4.206205939 | Q60: 4.206205939 | R60: 206.6929599 | S60: 4.206205939 | T60: 4.206205939 | U60: 0 | V60: 50 | X60: 20
C61: 24 | D61: 109.0650486 | E61: 24 | F61: 251.1886432 | G61: 4.388097724 | H61: 4.388097724 | I61: 83.72490457 | J61: 4.388097724 | K61: 4.388097724 | L61: 105.0510595 | M61: 4.388097724 | N61: 4.388097724 | O61: 171.3990971 | P61: 4.388097724 | Q61: 4.388097724 | R61: 215.6311221 | S61: 4.388097724 | T61: 4.388097724 | U61: 0 | V61: 50 | X61: 20
C62: 25 | D62: 108.0650486 | E62: 25 | F62: 316.227766 | G62: 4.570156383 | H62: 4.570156383 | I62: 87.19858378 | J62: 4.570156383 | K62: 4.570156383 | L62: 109.4095438 | M62: 4.570156383 | N62: 4.570156383 | O62: 178.5103083 | P62: 4.570156383 | Q62: 4.570156383 | R62: 224.5774846 | S62: 4.570156383 | T62: 4.570156383 | U62: 0 | V62: 50 | X62: 20
C63: 26 | D63: 107.0650486 | E63: 26 | F63: 398.1071706 | G63: 4.752347814 | H63: 4.752347814 | I63: 90.67479629 | J63: 4.752347814 | K63: 4.752347814 | L63: 113.7712067 | M63: 4.752347814 | N63: 4.752347814 | O63: 185.6267056 | P63: 4.752347814 | Q63: 4.752347814 | R63: 233.5303716 | S63: 4.752347814 | T63: 4.752347814 | U63: 0 | V63: 50 | X63: 20
C64: 27 | D64: 106.0650486 | E64: 27 | F64: 501.1872336 | G64: 4.934644849 | H64: 4.769625 | I64: 91.004445 | J64: 4.934644849 | K64: 4.769625 | L64: 114.1848225 | M64: 4.934644849 | N64: 4.769625 | O64: 186.3015525 | P64: 4.934644849 | Q64: 4.769625 | R64: 234.3793725 | S64: 4.934644849 | T64: 4.769625 | U64: 0 | V64: 50 | X64: 20
C65: 28 | D65: 105.0650486 | E65: 28 | F65: 630.9573445 | G65: 5.117025855 | H65: 4.769625 | I65: 91.004445 | J65: 5.117025855 | K65: 4.769625 | L65: 114.1848225 | M65: 5.117025855 | N65: 4.769625 | O65: 186.3015525 | P65: 5.117025855 | Q65: 4.769625 | R65: 234.3793725 | S65: 5.117025855 | T65: 4.769625 | U65: 0 | V65: 50 | X65: 20
C66: 29 | D66: 104.0650486 | E66: 29 | F66: 794.3282347 | G66: 5.299473618 | H66: 4.769625 | I66: 91.004445 | J66: 5.299473618 | K66: 4.769625 | L66: 114.1848225 | M66: 5.299473618 | N66: 4.769625 | O66: 186.3015525 | P66: 5.299473618 | Q66: 4.769625 | R66: 234.3793725 | S66: 5.299473618 | T66: 4.769625 | U66: 0 | V66: 50 | X66: 20
C67: 30 | D67: 103.0650486 | E67: 30 | F67: 1000 | G67: 5.481974442 | H67: 4.769625 | I67: 91.004445 | J67: 5.481974442 | K67: 4.769625 | L67: 114.1848225 | M67: 5.481974442 | N67: 4.769625 | O67: 186.3015525 | P67: 5.481974442 | Q67: 4.769625 | R67: 234.3793725 | S67: 5.481974442 | T67: 4.769625 | U67: 0 | V67: 50 | X67: 20

Sheet Sources
A1: Sources
B2: Link level performance Model (Truncated Shannon capacity) | K2: 5g NR Max Throughput calculations
B3: Taken from Annex A to 3gpp TR 36.942 | K3: Taken from §4.1.2 in 3GPP TS 38.306
U5: Table 5.2.2.1-3: 4-bit CQI Table 2 (downlink
U6: CQI index | V6: modulation | W6: code rate x 1024 | X6: efficiency
U7: 0 | V7: out of range
A8: Where: | U8: 1 | V8: QPSK | W8: 78 | X8: 0.1523
A9: S(SINR) is the Shannon bound: S(SINR) = log2(1+SINR) (bps/Hz) and: | U9: 2 | V9: QPSK | W9: 193 | X9: 0.377
A10: a | B10: is the attenuation factor, representing implementation losses, | U10: 3 | V10: QPSK | W10: 449 | X10: 0.877
A11: SINRmin is the minimum SINR of the codeset (dB), | U11: 4 | V11: 16QAM | W11: 378 | X11: 1.4766
A12: Thrmax is the maximum throughput of the codeset (bps/Hz) and | U12: 5 | V12: 16QAM | W12: 490 | X12: 1.9141
A13: SINRmax SINR at which max throughput is reached S-1 (Thrmax) (dB) | U13: 6 | V13: 16QAM | W13: 616 | X13: 2.4063
U14: 7 | V14: 64QAM | W14: 466 | X14: 2.7305
U15: 8 | V15: 64QAM | W15: 567 | X15: 3.3223
B16: Alpha set based on: | U16: 9 | V16: 64QAM | W16: 666 | X16: 3.9023
B17: - 1:2 antenna configurations | U17: 10 | V17: 64QAM | W17: 772 | X17: 4.5234
B18: - Typical Urban fast fading channel model (10kmph DL, 3kmph UL) | U18: 11 | V18: 64QAM | W18: 873 | X18: 5.1152
B19: - Link Adaptation (see table 1 for details of highest and lowest rate codes) | U19: 12 | V19: 256QAM | W19: 711 | X19: 5.5547
B20: - Channel prediction | U20: 13 | V20: 256QAM | W20: 797 | X20: 6.2266
B21: - HARQ | U21: 14 | V21: 256QAM | W21: 885 | X21: 6.9141
B22: 3GPP TS 36.942 Table A.1 | U22: 15 | V22: 256QAM | W22: 948 | X22: 7.4063
U23: Table 5.2.2.1-2: 4-bit CQI Table (uplink
U24: CQI index | V24: modulation | W24: code rate x 1024 | X24: efficiency
U25: 0 | V25: out of range
U26: 1 | V26: QPSK | W26: 78 | X26: 0.1523
U27: 2 | V27: QPSK | W27: 120 | X27: 0.2344
U28: 3 | V28: QPSK | W28: 193 | X28: 0.377
U29: 4 | V29: QPSK | W29: 308 | X29: 0.6016
U30: 5 | V30: QPSK | W30: 449 | X30: 0.877
U31: 6 | V31: QPSK | W31: 602 | X31: 1.1758
U32: 7 | V32: 16QAM | W32: 378 | X32: 1.4766
U33: 8 | V33: 16QAM | W33: 490 | X33: 1.9141
U34: 9 | V34: 16QAM | W34: 616 | X34: 2.4063
L35: Note: total Res Elem from Max Tput is NRB*12/T = NRB*12*14*1000*2^mu | U35: 10 | V35: 64QAM | W35: 466 | X35: 2.7305
U36: 11 | V36: 64QAM | W36: 567 | X36: 3.3223
U37: 12 | V37: 64QAM | W37: 666 | X37: 3.9023
U38: 13 | V38: 64QAM | W38: 772 | X38: 4.5234
U39: 14 | V39: 64QAM | W39: 873 | X39: 5.1152
U40: 15 | V40: 64QAM | W40: 948 | X40: 5.5547
